{"text_format":"1","workbook":"xlsx","n_sheets":6,"sheets":["Hilfe","4g4","4g3","3g4","3g3","Vereins-Nr."],"not_rendered":{"charts":0,"images":1,"macros":1,"external_links":11,"defined_names":181,"comments":0,"pivot_tables":0},"unopened":[],"bounds":{"document_bytes":16777216,"sheet_cells":100000,"rows_first":2000,"rows_last":500,"rows_between":2000,"halvings":0,"cell_chars":16384,"cell_head_chars":4096},"cells_cut":0,"cells_raw":0,"read":"whole","date_system":"1900"}

{"sheet":"Hilfe","index":0,"n_rows":45,"n_cols":185,"rows_kept":45,"cut":false,"hidden":false,"merged":[[23,152,23,201],[24,152,24,201],[19,152,19,201],[18,152,18,201],[17,152,17,201],[16,163,16,201],[21,152,21,201],[22,152,22,201],[16,152,16,162],[44,2,44,19],[44,20,44,21],[44,22,44,78],[44,79,44,99],[44,100,44,141],[43,100,43,141],[43,154,44,183],[43,184,44,213],[33,2,33,141],[34,2,35,10],[34,11,35,12],[34,13,35,43],[40,2,40,5],[40,54,40,58],[40,59,40,95],[34,79,34,116],[36,2,36,10],[36,11,36,12],[36,13,36,43],[37,2,37,5],[37,6,38,43],[39,2,39,5],[39,6,40,43],[25,152,25,201],[26,152,26,201],[38,2,38,5],[30,2,30,141],[31,2,31,141],[32,2,32,12],[32,13,32,14],[32,15,32,51],[32,64,32,65],[32,66,32,69],[32,70,32,82],[32,83,32,89],[32,90,32,94],[32,95,32,96],[32,97,32,101],[45,0,45,141],[40,100,40,104],[40,105,40,141],[41,2,41,42],[41,54,41,141],[42,2,42,141],[43,2,43,19],[43,20,43,21],[43,22,43,78],[43,79,43,99],[34,44,41,48],[34,49,41,53],[34,54,34,78],[34,117,34,141],[35,54,39,95],[35,96,40,99],[35,100,39,141],[32,102,32,112],[32,113,32,119],[32,120,32,125],[32,126,32,127],[32,128,32,133],[32,134,32,141],[27,138,27,141],[28,2,28,123],[28,124,29,128],[28,129,29,133],[28,134,29,137],[28,138,29,141],[29,2,29,15],[29,16,29,26],[29,27,29,36],[29,37,29,50],[29,51,29,61],[29,62,29,83],[29,84,29,89],[29,90,29,91],[29,92,29,97],[29,98,29,123],[32,52,32,59],[32,60,32,63],[26,104,26,108],[26,109,26,113],[26,114,26,118],[26,119,26,123],[26,124,26,128],[26,129,26,133],[26,134,26,137],[26,138,26,141],[27,2,27,11],[27,12,27,42],[27,43,27,73],[27,74,27,78],[27,79,27,83],[27,84,27,88],[27,89,27,93],[27,94,27,98],[27,99,27,103],[27,104,27,108],[27,109,27,113],[27,114,27,118],[27,119,27,123],[27,124,27,128],[27,129,27,133],[27,134,27,137],[26,2,26,11],[26,12,26,42],[26,43,26,73],[26,74,26,78],[26,79,26,83],[26,84,26,88],[26,89,26,93],[26,94,26,98],[26,99,26,103],[24,138,24,141],[25,2,25,11],[25,12,25,42],[25,43,25,73],[25,74,25,78],[25,79,25,83],[25,84,25,88],[25,89,25,93],[25,94,25,98],[25,99,25,103],[25,104,25,108],[25,109,25,113],[25,114,25,118],[25,119,25,123],[25,124,25,128],[25,129,25,133],[25,134,25,137],[25,138,25,141],[23,104,23,108],[23,109,23,113],[23,114,23,118],[23,119,23,123],[23,124,23,128],[23,129,23,133],[23,134,23,137],[23,138,23,141],[24,2,24,11],[24,12,24,42],[24,43,24,73],[24,74,24,78],[24,79,24,83],[24,84,24,88],[24,89,24,93],[24,94,24,98],[24,99,24,103],[24,104,24,108],[24,109,24,113],[24,114,24,118],[24,119,24,123],[24,124,24,128],[24,129,24,133],[24,134,24,137],[23,2,23,11],[23,12,23,42],[23,43,23,73],[23,74,23,78],[23,79,23,83],[23,84,23,88],[23,89,23,93],[23,94,23,98],[23,99,23,103],[21,138,21,141],[22,2,22,11],[22,12,22,42],[22,43,22,73],[22,74,22,78],[22,79,22,83],[22,84,22,88],[22,89,22,93],[22,94,22,98],[22,99,22,103],[22,104,22,108],[22,109,22,113],[22,114,22,118],[22,119,22,123],[22,124,22,128],[22,129,22,133],[22,134,22,137],[22,138,22,141],[20,104,20,108],[20,109,20,113],[20,114,20,118],[20,119,20,123],[20,124,20,128],[20,129,20,133],[20,134,20,137],[20,138,20,141],[21,2,21,11],[21,12,21,42],[21,43,21,73],[21,74,21,78],[21,79,21,83],[21,84,21,88],[21,89,21,93],[21,94,21,98],[21,99,21,103],[21,104,21,108],[21,109,21,113],[21,114,21,118],[21,119,21,123],[21,124,21,128],[21,129,21,133],[21,134,21,137],[20,2,20,11],[20,12,20,42],[20,43,20,73],[20,74,20,78],[20,79,20,83],[20,84,20,88],[20,89,20,93],[20,94,20,98],[20,99,20,103],[18,119,19,123],[18,124,19,128],[18,129,19,133],[18,134,19,137],[18,138,19,141],[19,2,19,11],[19,12,19,42],[19,43,19,73],[18,89,19,93],[18,94,19,98],[18,99,19,103],[18,104,19,108],[18,109,19,113],[18,114,19,118],[18,2,18,11],[18,12,18,42],[18,43,18,73],[18,74,19,78],[18,79,19,83],[18,84,19,88],[17,12,17,42],[17,43,17,73],[15,114,15,123],[15,124,15,133],[15,134,15,141],[15,104,15,113],[16,124,17,128],[16,129,17,133],[16,134,17,137],[16,138,17,141],[16,94,17,98],[16,99,17,103],[16,104,17,108],[16,109,17,113],[16,114,17,118],[16,119,17,123],[12,113,12,141],[13,6,13,9],[13,10,13,38],[13,39,13,41],[13,42,13,70],[13,77,13,80],[13,81,13,109],[16,89,17,93],[13,110,13,112],[13,113,13,141],[14,2,14,141],[15,2,15,11],[15,12,15,42],[15,43,15,73],[15,74,15,83],[15,84,15,93],[15,94,15,103],[16,2,16,11],[16,12,16,42],[16,43,16,73],[16,74,17,78],[16,79,17,83],[16,84,17,88],[17,2,17,11],[12,2,13,5],[12,6,12,9],[12,10,12,38],[12,39,12,41],[12,42,12,70],[12,73,13,76],[12,77,12,80],[12,81,12,109],[12,110,12,112],[10,63,10,70],[10,77,10,80],[10,81,10,133],[10,134,10,141],[11,6,11,9],[11,10,11,62],[11,63,11,70],[11,77,11,80],[11,81,11,133],[11,134,11,141],[6,2,6,141],[7,2,7,9],[7,10,7,62],[7,63,7,70],[7,71,13,72],[7,73,7,80],[7,81,7,133],[7,134,7,141],[8,2,11,5],[8,6,8,9],[8,10,8,62],[8,63,8,70],[8,73,11,76],[8,77,8,80],[8,81,8,133],[8,134,8,141],[9,6,9,9],[9,10,9,62],[9,63,9,70],[9,77,9,80],[9,81,9,133],[9,134,9,141],[10,6,10,9],[10,10,10,62],[3,136,3,141],[4,2,4,41],[4,42,4,49],[4,50,4,56],[4,57,5,67],[4,68,4,75],[4,76,4,82],[4,83,4,122],[4,128,4,141],[5,2,5,41],[5,42,5,56],[5,68,5,82],[5,83,5,141],[28,152,29,211],[30,152,32,211],[0,0,44,1],[0,2,0,141],[0,143,45,144],[1,2,1,141],[2,2,2,16],[2,17,2,18],[2,19,2,33],[2,34,2,35],[2,36,2,62],[2,63,2,64],[2,65,2,93],[2,94,2,101],[2,102,2,120],[2,122,2,130],[2,131,2,132],[2,133,2,141],[3,2,3,56],[3,57,3,67],[3,68,3,122],[3,123,4,127],[3,128,3,133],[3,134,3,135]]}
[null,null,"\"Braunschweiger System\"   -   4 gegen 4"]
[null,null,"TT-Kreis Bayreuth"]
[null,null,"Herren",null,null,null,null,null,null,null,null,null,null,null,null,null,null,"-",null,"Verbands",null,null,null,null,null,null,null,null,null,null,null,null,null,null,"-",null,"Mannschaftsspiel",null,null,null,null,null,null,null,null,null,null,null,null,null,null,null,null,null,null,null,null,null,null,null,null,null,null,"-",null,"4. Kreisliga Mitte",null,null,null,null,null,null,null,null,null,null,null,null,null,null,null,null,null,null,null,null,null,null,null,null,null,null,null,null,null,null,null,null,null,null,null,null,"Vorrunde",null,null,null,null,null,null,null,null,null,null,null,null,null,null,null,null,null,null,null,2016,null,null,null,null,null,null,null,null,"/",null,{"$f":"DS3+1","v":2017},null,null,null,null,null,null,null,null,{"$f":"IF(EE29=EI29,\"\",IF(EE29>EI29,C4,BQ4))","v":"Gastteam"}]
[null,null,"Heimteam",null,null,null,null,null,null,null,null,null,null,null,null,null,null,null,null,null,null,null,null,null,null,null,null,null,null,null,null,null,null,null,null,null,null,null,null,null,null,null,null,null,null,null,null,null,null,null,null,null,null,null,null,null,null,"gegen",null,null,null,null,null,null,null,null,null,null,"Gastteam",null,null,null,null,null,null,null,null,null,null,null,null,null,null,null,null,null,null,null,null,null,null,null,null,null,null,null,null,null,null,null,null,null,null,null,null,null,null,null,null,null,null,null,null,null,null,null,null,null,null,null,null,null,null,null,null,null,null,null,{"$f":"EE29","v":4},null,null,null,null,null,":",null,{"$f":"EI29","v":6},null,null,null,null,null,{"$f":"IF(BI33=\"\",\"\",IF(EE29=EI29,EM11))","v":false}]
[null,null,"Heimmannschaft  ( A )",null,null,null,null,null,null,null,null,null,null,null,null,null,null,null,null,null,null,null,null,null,null,null,null,null,null,null,null,null,null,null,null,null,null,null,null,null,null,null,508,null,null,null,null,null,null,null,null,null,null,null,null,null,null,null,null,null,null,null,null,null,null,null,null,null,508,null,null,null,null,null,null,null,null,null,null,null,null,null,null,"Gastmannschaft  ( B )",null,null,null,null,null,null,null,null,null,null,null,null,null,null,null,null,null,null,null,null,null,null,null,null,null,null,null,null,null,null,null,null,null,null,null,null,null,null,null,null,null,null,null,null,"Endergebnis"]
[null,null,null,null,null,null,null,null,null,null,null,null,null,null,null,null,null,null,null,null,null,null,null,null,null,null,null,null,null,null,null,null,null,null,null,null,null,null,null,null,null,null,"Vereins-Nr.",null,null,null,null,null,null,null,null,null,null,null,null,null,null,null,null,null,null,null,null,null,null,null,null,null,"Vereins-Nr."]
[null,null,"Mannschaftsaufstellung"]
[null,null,"Rang",null,null,null,null,null,null,null,"Heimverein ( Mannschaft A )",null,null,null,null,null,null,null,null,null,null,null,null,null,null,null,null,null,null,null,null,null,null,null,null,null,null,null,null,null,null,null,null,null,null,null,null,null,null,null,null,null,null,null,null,null,null,null,null,null,null,null,null,"Pos.",null,null,null,null,null,null,null,null,null,"Rang",null,null,null,null,null,null,null,"Gastverein ( Mannschaft B )",null,null,null,null,null,null,null,null,null,null,null,null,null,null,null,null,null,null,null,null,null,null,null,null,null,null,null,null,null,null,null,null,null,null,null,null,null,null,null,null,null,null,null,null,null,null,null,null,null,null,null,null,"Pos."]
[null,null,"E I N Z E L",null,null,null,"A1",null,null,null,"Heimspieler 1",null,null,null,null,null,null,null,null,null,null,null,null,null,null,null,null,null,null,null,null,null,null,null,null,null,null,null,null,null,null,null,null,null,null,null,null,null,null,null,null,null,null,null,null,null,null,null,null,null,null,null,null,"3.1",null,null,null,null,null,null,null,null,null,"E I N Z E L",null,null,null,"B1",null,null,null,"Gastspieler 1",null,null,null,null,null,null,null,null,null,null,null,null,null,null,null,null,null,null,null,null,null,null,null,null,null,null,null,null,null,null,null,null,null,null,null,null,null,null,null,null,null,null,null,null,null,null,null,null,null,null,null,null,"4.1",null,null,null,null,null,null,null,{"$f":"IF(EE29<>EI29,EM3,EM4)","v":"Gastteam"}]
[null,null,null,null,null,null,"A2",null,null,null,"Heimspieler 2",null,null,null,null,null,null,null,null,null,null,null,null,null,null,null,null,null,null,null,null,null,null,null,null,null,null,null,null,null,null,null,null,null,null,null,null,null,null,null,null,null,null,null,null,null,null,null,null,null,null,null,null,"3.2",null,null,null,null,null,null,null,null,null,null,null,null,null,"B2",null,null,null,"Gastspieler 2",null,null,null,null,null,null,null,null,null,null,null,null,null,null,null,null,null,null,null,null,null,null,null,null,null,null,null,null,null,null,null,null,null,null,null,null,null,null,null,null,null,null,null,null,null,null,null,null,null,null,null,null,"4.2",null,null,null,null,null,null,null,"Sieger"]
[null,null,null,null,null,null,"A3",null,null,null,"Heimspieler 3",null,null,null,null,null,null,null,null,null,null,null,null,null,null,null,null,null,null,null,null,null,null,null,null,null,null,null,null,null,null,null,null,null,null,null,null,null,null,null,null,null,null,null,null,null,null,null,null,null,null,null,null,"3.3",null,null,null,null,null,null,null,null,null,null,null,null,null,"B3",null,null,null,"Gastspieler 3",null,null,null,null,null,null,null,null,null,null,null,null,null,null,null,null,null,null,null,null,null,null,null,null,null,null,null,null,null,null,null,null,null,null,null,null,null,null,null,null,null,null,null,null,null,null,null,null,null,null,null,null,"4.3",null,null,null,null,null,null,null,"Unentschieden"]
[null,null,null,null,null,null,"A4",null,null,null,"Heimspieler 4",null,null,null,null,null,null,null,null,null,null,null,null,null,null,null,null,null,null,null,null,null,null,null,null,null,null,null,null,null,null,null,null,null,null,null,null,null,null,null,null,null,null,null,null,null,null,null,null,null,null,null,null,"3.4",null,null,null,null,null,null,null,null,null,null,null,null,null,"B4",null,null,null,"Gastspieler 4",null,null,null,null,null,null,null,null,null,null,null,null,null,null,null,null,null,null,null,null,null,null,null,null,null,null,null,null,null,null,null,null,null,null,null,null,null,null,null,null,null,null,null,null,null,null,null,null,null,null,null,null,"4.4"]
[null,null,"Doppel",null,null,null,"A1",null,null,null,{"$f":"K9","v":"Heimspieler 1"},null,null,null,null,null,null,null,null,null,null,null,null,null,null,null,null,null,null,null,null,null,null,null,null,null,null,null,null,"/",null,null,{"$f":"K10","v":"Heimspieler 2"},null,null,null,null,null,null,null,null,null,null,null,null,null,null,null,null,null,null,null,null,null,null,null,null,null,null,null,null,null,null,"Doppel",null,null,null,"B1",null,null,null,{"$f":"CD9","v":"Gastspieler 1"},null,null,null,null,null,null,null,null,null,null,null,null,null,null,null,null,null,null,null,null,null,null,null,null,null,null,null,null,"/",null,null,{"$f":"CD10","v":"Gastspieler 2"}]
[null,null,null,null,null,null,"A2",null,null,null,{"$f":"K11","v":"Heimspieler 3"},null,null,null,null,null,null,null,null,null,null,null,null,null,null,null,null,null,null,null,null,null,null,null,null,null,null,null,null,"/",null,null,{"$f":"K12","v":"Heimspieler 4"},null,null,null,null,null,null,null,null,null,null,null,null,null,null,null,null,null,null,null,null,null,null,null,null,null,null,null,null,null,null,null,null,null,null,"B2",null,null,null,{"$f":"CD11","v":"Gastspieler 3"},null,null,null,null,null,null,null,null,null,null,null,null,null,null,null,null,null,null,null,null,null,null,null,null,null,null,null,null,"/",null,null,{"$f":"CD12","v":"Gastspieler 4"}]
[null,null,"created by Gerhard Nidetzky"]
[null,null,"Spielfolge",null,null,null,null,null,null,null,null,null,"Heimverein ( Mannschaft A )",null,null,null,null,null,null,null,null,null,null,null,null,null,null,null,null,null,null,null,null,null,null,null,null,null,null,null,null,null,null,"Gastverein ( Mannschaft B )",null,null,null,null,null,null,null,null,null,null,null,null,null,null,null,null,null,null,null,null,null,null,null,null,null,null,null,null,null,null,"1. Satz",null,null,null,null,null,null,null,null,null,"2. Satz",null,null,null,null,null,null,null,null,null,"3. Satz",null,null,null,null,null,null,null,null,null,"4. Satz",null,null,null,null,null,null,null,null,null,"5. Satz",null,null,null,null,null,null,null,null,null,"Sätze",null,null,null,null,null,null,null,null,null,"Spiele",null,null,null,null,null,null,null,{"$f":"C4","v":"Heimteam"}]
[null,null,"Doppel",null,null,null,null,null,null,null,null,null,{"$f":"K13","v":"Heimspieler 1"},null,null,null,null,null,null,null,null,null,null,null,null,null,null,null,null,null,null,null,null,null,null,null,null,null,null,null,null,null,null,{"$f":"CD13","v":"Gastspieler 1"},null,null,null,null,null,null,null,null,null,null,null,null,null,null,null,null,null,null,null,null,null,null,null,null,null,null,null,null,null,null,11,null,null,null,null,9,null,null,null,null,11,null,null,null,null,9,null,null,null,null,11,null,null,null,null,5,null,null,null,null,null,null,null,null,null,null,null,null,null,null,null,null,null,null,null,null,null,null,null,null,{"$f":"IF(BW17=\"\",\"\",IF(BW17>CB17,1,0)+IF(CG17>CL17,1,0)+IF(CQ17>CV17,1,0)+IF(DA17>DF17,1,0)+IF(DK17>DP17,1,0))","v":3},null,null,null,null,{"$f":"IF(BW17=\"\",\"\",IF(BW17<CB17,1,0)+IF(CG17<CL17,1,0)+IF(CQ17<CV17,1,0)+IF(DA17<DF17,1,0)+IF(DK17<DP17,1,0))","v":0},null,null,null,null,{"$f":"IF(DU17=\"\",\"\",IF(DU17>DZ17,1,0))","v":1},null,null,null,{"$f":"IF(DU17=\"\",\"\",IF(DU17<DZ17,1,0))","v":0},null,null,null,{"$f":"SUM(BW17:CA28)","v":100},null,null,null,null,null,null,null,null,null,"In den",null,null,null,null,null,null,null,null,null,null,"gelb markierten Zellen"]
[null,null,"A1 - B1",null,null,null,null,null,null,null,null,null,{"$f":"AQ13","v":"Heimspieler 2"},null,null,null,null,null,null,null,null,null,null,null,null,null,null,null,null,null,null,null,null,null,null,null,null,null,null,null,null,null,null,{"$f":"DJ13","v":"Gastspieler 2"},null,null,null,null,null,null,null,null,null,null,null,null,null,null,null,null,null,null,null,null,null,null,null,null,null,null,null,null,null,null,null,null,null,null,null,null,null,null,null,null,null,null,null,null,null,null,null,null,null,null,null,null,null,null,null,null,null,null,null,null,null,null,null,null,null,null,null,null,null,null,null,null,null,null,null,null,null,null,null,null,null,null,null,null,null,null,null,null,null,null,null,null,null,null,null,null,null,null,{"$f":"SUM(CG17:CK28)","v":96},null,null,null,null,null,null,null,null,null,"müssen Eintragungen"]
[null,null,"Doppel",null,null,null,null,null,null,null,null,null,{"$f":"K14","v":"Heimspieler 3"},null,null,null,null,null,null,null,null,null,null,null,null,null,null,null,null,null,null,null,null,null,null,null,null,null,null,null,null,null,null,{"$f":"CD14","v":"Gastspieler 3"},null,null,null,null,null,null,null,null,null,null,null,null,null,null,null,null,null,null,null,null,null,null,null,null,null,null,null,null,null,null,9,null,null,null,null,11,null,null,null,null,5,null,null,null,null,11,null,null,null,null,9,null,null,null,null,11,null,null,null,null,null,null,null,null,null,null,null,null,null,null,null,null,null,null,null,null,null,null,null,null,{"$f":"IF(BW19=\"\",\"\",IF(BW19>CB19,1,0)+IF(CG19>CL19,1,0)+IF(CQ19>CV19,1,0)+IF(DA19>DF19,1,0)+IF(DK19>DP19,1,0))","v":0},null,null,null,null,{"$f":"IF(BW19=\"\",\"\",IF(BW19<CB19,1,0)+IF(CG19<CL19,1,0)+IF(CQ19<CV19,1,0)+IF(DA19<DF19,1,0)+IF(DK19<DP19,1,0))","v":3},null,null,null,null,{"$f":"IF(DU19=\"\",\"\",IF(DU19>DZ19,1,0))","v":0},null,null,null,{"$f":"IF(DU19=\"\",\"\",IF(DU19<DZ19,1,0))","v":1},null,null,null,{"$f":"SUM(CQ17:CU28)","v":94},null,null,null,null,null,null,null,null,null,"vorgenommen werden"]
[null,null,"A2 - B2",null,null,null,null,null,null,null,null,null,{"$f":"AQ14","v":"Heimspieler 4"},null,null,null,null,null,null,null,null,null,null,null,null,null,null,null,null,null,null,null,null,null,null,null,null,null,null,null,null,null,null,{"$f":"DJ14","v":"Gastspieler 4"},null,null,null,null,null,null,null,null,null,null,null,null,null,null,null,null,null,null,null,null,null,null,null,null,null,null,null,null,null,null,null,null,null,null,null,null,null,null,null,null,null,null,null,null,null,null,null,null,null,null,null,null,null,null,null,null,null,null,null,null,null,null,null,null,null,null,null,null,null,null,null,null,null,null,null,null,null,null,null,null,null,null,null,null,null,null,null,null,null,null,null,null,null,null,null,null,null,null,{"$f":"SUM(DA17:DE28)","v":5},null,null,null,null,null,null,null,null,null,"Rest wird automatisch erledigt"]
[null,null,"E A1-B1",null,null,null,null,null,null,null,null,null,{"$f":"K9","v":"Heimspieler 1"},null,null,null,null,null,null,null,null,null,null,null,null,null,null,null,null,null,null,null,null,null,null,null,null,null,null,null,null,null,null,{"$f":"CD9","v":"Gastspieler 1"},null,null,null,null,null,null,null,null,null,null,null,null,null,null,null,null,null,null,null,null,null,null,null,null,null,null,null,null,null,null,11,null,null,null,null,9,null,null,null,null,11,null,null,null,null,9,null,null,null,null,11,null,null,null,null,9,null,null,null,null,null,null,null,null,null,null,null,null,null,null,null,null,null,null,null,null,null,null,null,null,{"$f":"IF(BW21=\"\",\"\",IF(BW21>CB21,1,0)+IF(CG21>CL21,1,0)+IF(CQ21>CV21,1,0)+IF(DA21>DF21,1,0)+IF(DK21>DP21,1,0))","v":3},null,null,null,null,{"$f":"IF(BW21=\"\",\"\",IF(BW21<CB21,1,0)+IF(CG21<CL21,1,0)+IF(CQ21<CV21,1,0)+IF(DA21<DF21,1,0)+IF(DK21<DP21,1,0))","v":0},null,null,null,null,{"$f":"IF(DU21=\"\",\"\",IF(DU21>DZ21,1,0))","v":1},null,null,null,{"$f":"IF(DU21=\"\",\"\",IF(DU21<DZ21,1,0))","v":0},null,null,null,{"$f":"SUM(DK17:DO28)","v":9}]
[null,null,"E A2-B2",null,null,null,null,null,null,null,null,null,{"$f":"K10","v":"Heimspieler 2"},null,null,null,null,null,null,null,null,null,null,null,null,null,null,null,null,null,null,null,null,null,null,null,null,null,null,null,null,null,null,{"$f":"CD10","v":"Gastspieler 2"},null,null,null,null,null,null,null,null,null,null,null,null,null,null,null,null,null,null,null,null,null,null,null,null,null,null,null,null,null,null,11,null,null,null,null,9,null,null,null,null,11,null,null,null,null,9,null,null,null,null,5,null,null,null,null,11,null,null,null,null,5,null,null,null,null,11,null,null,null,null,9,null,null,null,null,11,null,null,null,null,{"$f":"IF(BW22=\"\",\"\",IF(BW22>CB22,1,0)+IF(CG22>CL22,1,0)+IF(CQ22>CV22,1,0)+IF(DA22>DF22,1,0)+IF(DK22>DP22,1,0))","v":2},null,null,null,null,{"$f":"IF(BW22=\"\",\"\",IF(BW22<CB22,1,0)+IF(CG22<CL22,1,0)+IF(CQ22<CV22,1,0)+IF(DA22<DF22,1,0)+IF(DK22<DP22,1,0))","v":3},null,null,null,null,{"$f":"IF(DU22=\"\",\"\",IF(DU22>DZ22,1,0))","v":0},null,null,null,{"$f":"IF(DU22=\"\",\"\",IF(DU22<DZ22,1,0))","v":1},null,null,null,{"$f":"SUM(EM17:EM21)","v":304},null,null,null,null,null,null,null,null,null,"es empfielt sich die jeweils"]
[null,null,"E A3-B3",null,null,null,null,null,null,null,null,null,{"$f":"K11","v":"Heimspieler 3"},null,null,null,null,null,null,null,null,null,null,null,null,null,null,null,null,null,null,null,null,null,null,null,null,null,null,null,null,null,null,{"$f":"CD11","v":"Gastspieler 3"},null,null,null,null,null,null,null,null,null,null,null,null,null,null,null,null,null,null,null,null,null,null,null,null,null,null,null,null,null,null,11,null,null,null,null,9,null,null,null,null,11,null,null,null,null,9,null,null,null,null,11,null,null,null,null,9,null,null,null,null,null,null,null,null,null,null,null,null,null,null,null,null,null,null,null,null,null,null,null,null,{"$f":"IF(BW23=\"\",\"\",IF(BW23>CB23,1,0)+IF(CG23>CL23,1,0)+IF(CQ23>CV23,1,0)+IF(DA23>DF23,1,0)+IF(DK23>DP23,1,0))","v":3},null,null,null,null,{"$f":"IF(BW23=\"\",\"\",IF(BW23<CB23,1,0)+IF(CG23<CL23,1,0)+IF(CQ23<CV23,1,0)+IF(DA23<DF23,1,0)+IF(DK23<DP23,1,0))","v":0},null,null,null,null,{"$f":"IF(DU23=\"\",\"\",IF(DU23>DZ23,1,0))","v":1},null,null,null,{"$f":"IF(DU23=\"\",\"\",IF(DU23<DZ23,1,0))","v":0},null,null,null,null,null,null,null,null,null,null,null,null,null,"zu nutzende, notwendige Datei"]
[null,null,"E A4-B4",null,null,null,null,null,null,null,null,null,{"$f":"K12","v":"Heimspieler 4"},null,null,null,null,null,null,null,null,null,null,null,null,null,null,null,null,null,null,null,null,null,null,null,null,null,null,null,null,null,null,{"$f":"CD12","v":"Gastspieler 4"},null,null,null,null,null,null,null,null,null,null,null,null,null,null,null,null,null,null,null,null,null,null,null,null,null,null,null,null,null,null,11,null,null,null,null,9,null,null,null,null,11,null,null,null,null,9,null,null,null,null,11,null,null,null,null,9,null,null,null,null,null,null,null,null,null,null,null,null,null,null,null,null,null,null,null,null,null,null,null,null,3,null,null,null,null,0,null,null,null,null,1,null,null,null,0,null,null,null,{"$f":"BQ4","v":"Gastteam"},null,null,null,null,null,null,null,null,null,"innerhalb dieses Tabellenblattes"]
[null,null,"E A1-B2",null,null,null,null,null,null,null,null,null,{"$f":"K9","v":"Heimspieler 1"},null,null,null,null,null,null,null,null,null,null,null,null,null,null,null,null,null,null,null,null,null,null,null,null,null,null,null,null,null,null,{"$f":"CD10","v":"Gastspieler 2"},null,null,null,null,null,null,null,null,null,null,null,null,null,null,null,null,null,null,null,null,null,null,null,null,null,null,null,null,null,null,9,null,null,null,null,11,null,null,null,null,9,null,null,null,null,11,null,null,null,null,9,null,null,null,null,11,null,null,null,null,null,null,null,null,null,null,null,null,null,null,null,null,null,null,null,null,null,null,null,null,0,null,null,null,null,3,null,null,null,null,0,null,null,null,1,null,null,null,{"$f":"SUM(CB17:CF28)","v":100},null,null,null,null,null,null,null,null,null,"zu \"verschieben / kopieren\""]
[null,null,"E A2-B1",null,null,null,null,null,null,null,null,null,{"$f":"K10","v":"Heimspieler 2"},null,null,null,null,null,null,null,null,null,null,null,null,null,null,null,null,null,null,null,null,null,null,null,null,null,null,null,null,null,null,{"$f":"CD9","v":"Gastspieler 1"},null,null,null,null,null,null,null,null,null,null,null,null,null,null,null,null,null,null,null,null,null,null,null,null,null,null,null,null,null,null,9,null,null,null,null,11,null,null,null,null,9,null,null,null,null,11,null,null,null,null,9,null,null,null,null,11,null,null,null,null,null,null,null,null,null,null,null,null,null,null,null,null,null,null,null,null,null,null,null,null,0,null,null,null,null,3,null,null,null,null,0,null,null,null,1,null,null,null,{"$f":"SUM(CL17:CP28)","v":100},null,null,null,null,null,null,null,null,null,"oder zu jedem neuen Spiel"]
[null,null,"E A3-B4",null,null,null,null,null,null,null,null,null,{"$f":"K11","v":"Heimspieler 3"},null,null,null,null,null,null,null,null,null,null,null,null,null,null,null,null,null,null,null,null,null,null,null,null,null,null,null,null,null,null,{"$f":"CD12","v":"Gastspieler 4"},null,null,null,null,null,null,null,null,null,null,null,null,null,null,null,null,null,null,null,null,null,null,null,null,null,null,null,null,null,null,9,null,null,null,null,11,null,null,null,null,9,null,null,null,null,11,null,null,null,null,9,null,null,null,null,11,null,null,null,null,null,null,null,null,null,null,null,null,null,null,null,null,null,null,null,null,null,null,null,null,0,null,null,null,null,3,null,null,null,null,0,null,null,null,1,null,null,null,{"$f":"SUM(CV17:CZ28)","v":98},null,null,null,null,null,null,null,null,null,"die Gesamtdatei zu kopieren !"]
[null,null,"E A4-B3",null,null,null,null,null,null,null,null,null,{"$f":"K12","v":"Heimspieler 4"},null,null,null,null,null,null,null,null,null,null,null,null,null,null,null,null,null,null,null,null,null,null,null,null,null,null,null,null,null,null,{"$f":"CD11","v":"Gastspieler 3"},null,null,null,null,null,null,null,null,null,null,null,null,null,null,null,null,null,null,null,null,null,null,null,null,null,null,null,null,null,null,9,null,null,null,null,11,null,null,null,null,9,null,null,null,null,11,null,null,null,null,9,null,null,null,null,11,null,null,null,null,null,null,null,null,null,null,null,null,null,null,null,null,null,null,null,null,null,null,null,null,0,null,null,null,null,3,null,null,null,null,0,null,null,null,1,null,null,null,{"$f":"SUM(DF17:DJ28)","v":11}]
[null,null,null,null,null,null,null,null,null,null,null,null,null,null,null,null,null,null,null,null,null,null,null,null,null,null,null,null,null,null,null,null,null,null,null,null,null,null,null,null,null,null,null,null,null,null,null,null,null,null,null,null,null,null,null,null,null,null,null,null,null,null,null,null,null,null,null,null,null,null,null,null,null,null,null,null,null,null,null,null,null,null,null,null,null,null,null,null,null,null,null,null,null,null,null,null,null,null,null,null,null,null,null,null,null,null,null,null,null,null,null,null,null,null,null,null,null,null,null,null,null,null,null,null,{"$f":"IF(DU17=\"\",\"\",SUM(DU17:DY28))","v":14},null,null,null,null,{"$f":"IF(DZ17=\"\",\"\",SUM(DZ17:ED28))","v":18},null,null,null,null,{"$f":"IF(EE17=\"\",\"\",SUM(EE17:EH28))","v":4},null,null,null,{"$f":"IF(EI17=\"\",\"\",SUM(EI17:EL28))","v":6},null,null,null,{"$f":"SUM(DP17:DT28)","v":11},null,null,null,null,null,null,null,null,null,"Alle Stammdaten werden aus 4g4 übernommen"]
[null,null,"Spielbeginn :",null,null,null,null,null,null,null,null,null,null,null,null,null,null,null,null,null,null,null,null,null,null,null,null,"Uhr",null,null,null,null,null,null,null,null,null,"Spielende :",null,null,null,null,null,null,null,null,null,null,null,null,null,null,null,null,null,null,null,null,null,null,null,null,"Uhr",null,null,null,null,null,null,null,null,null,null,null,null,null,null,null,null,null,null,null,null,null,{"$f":"EM22","v":304},null,null,null,null,null,":",null,{"$f":"EM30","v":320},null,null,null,null,null," Bälle",null,null,null,null,null,null,null,null,null,null,null,null,null,null,null,null,null,null,null,null,null,null,null,null,null,null,null,null,null,null,null,null,null,null,null,null,null,null,null,null,null,null,null,{"$f":"SUM(EM25:EM29)","v":320}]
[null,null,null,null,null,null,null,null,null,null,null,null,null,null,null,null,null,null,null,null,null,null,null,null,null,null,null,null,null,null,null,null,null,null,null,null,null,null,null,null,null,null,null,null,null,null,null,null,null,null,null,null,null,null,null,null,null,null,null,null,null,null,null,null,null,null,null,null,null,null,null,null,null,null,null,null,null,null,null,null,null,null,null,null,null,null,null,null,null,null,null,null,null,null,null,null,null,null,null,null,null,null,null,null,null,null,null,null,null,null,null,null,null,null,null,null,null,null,null,null,null,null,null,null,null,null,null,null,null,null,null,null,null,null,null,null,null,null,null,null,null,null,null,null,null,null,null,null,null,null,null,null,"und erscheinen dann auch in den anderen 4 Dateien"]
[]
[null,null,{"$f":"IF(BI33=BO33,\"\",IF(BI33>BO33,EM10,EM12))","v":"Sieger"},null,null,null,null,null,null,null,null,null,null,":",null,{"$f":"EM9","v":"Gastteam"},null,null,null,null,null,null,null,null,null,null,null,null,null,null,null,null,null,null,null,null,null,null,null,null,null,null,null,null,null,null,null,null,null,null,null,null,"mit :",null,null,null,null,null,null,null,{"$f":"IF(EE29>EI29,EE29,EI29)","v":6},null,null,null,":",null,{"$f":"IF(EE29<EI29,EE29,EI29)","v":4},null,null,null,"Spielen",null,null,null,null,null,null,null,null,null,null,null,null,"und",null,null,null,null,null,null,{"$f":"IF(EE29>=EI29,DU29,DZ29)","v":18},null,null,null,null,":",null,{"$f":"IF(EE29<EI29,DU29,DZ29)","v":14},null,null,null,null,"Sätzen",null,null,null,null,null,null,null,null,null,null,"und",null,null,null,null,null,null,{"$f":"IF(EE29>=EI29,EM22,EM30)","v":320},null,null,null,null,null,":",null,{"$f":"IF(EE29<EI29,EM22,EM30)","v":304},null,null,null,null,null," Bälle"]
[]
[null,null,"Spielort ",null,null,null,null,null,null,null,null,":",null,null,null,null,null,null,null,null,null,null,null,null,null,null,null,null,null,null,null,null,null,null,null,null,null,null,null,null,null,null,null,null,null,null,null,null,null,null,null,null,null,null,"Heimverein",null,null,null,null,null,null,null,null,null,null,null,null,null,null,null,null,null,null,null,null,null,null,null,null,"Unterschriften Mannschaftsführer",null,null,null,null,null,null,null,null,null,null,null,null,null,null,null,null,null,null,null,null,null,null,null,null,null,null,null,null,null,null,null,null,null,null,null,null,null,"Gastverein"]
[]
[null,null,"Datum",null,null,null,null,null,null,null,null,":"]
[null,null,null,null,null,null," kein Protest"]
[]
[null,null,null,null,null,null,"Protest - siehe Anlage"]
[null,null,null,null,null,null,null,null,null,null,null,null,null,null,null,null,null,null,null,null,null,null,null,null,null,null,null,null,null,null,null,null,null,null,null,null,null,null,null,null,null,null,null,null,null,null,null,null,null,null,null,null,null,null,"Mf :",null,null,null,null,null,null,null,null,null,null,null,null,null,null,null,null,null,null,null,null,null,null,null,null,null,null,null,null,null,null,null,null,null,null,null,null,null,null,null,null,null,null,null,null,null,"Mf :"]
[]
[]
[null,null," Staffelleiter",null,null,null,null,null,null,null,null,null,null,null,null,null,null,null,null,null,":",null,"Matthias Höger - Erlenweg 8, 86697 Unterhausen",null,null,null,null,null,null,null,null,null,null,null,null,null,null,null,null,null,null,null,null,null,null,null,null,null,null,null,null,null,null,null,null,null,null,null,null,null,null,null,null,null,null,null,null,null,null,null,null,null,null,null,null,null,null,null,null,"0176 - 465 777 99",null,null,null,null,null,null,null,null,null,null,null,null,null,null,null,null,null,null,null,null,"matthias.hoeger@ttkreis-bayreuth.de",null,null,null,null,null,null,null,null,null,null,null,null,null,null,null,null,null,null,null,null,null,null,null,null,null,null,null,null,null,null,null,null,null,null,null,null,null,null,null,null,null,null,null,null,null,null,null,null,null,null,null,null,null,"letzte Änderung :",null,null,null,null,null,null,null,null,null,null,null,null,null,null,null,null,null,null,null,null,null,null,null,null,null,null,null,null,null,"2016-06-06"]
[null,null," Mannschaftsführer",null,null,null,null,null,null,null,null,null,null,null,null,null,null,null,null,null,":",null,"Heimverein Mf - Straße H.-Nr. - PLZ Ort"]

{"sheet":"4g4","index":1,"n_rows":45,"n_cols":143,"rows_kept":45,"cut":false,"hidden":false,"merged":[[0,143,45,144],[1,2,1,141],[2,2,2,16],[2,17,2,18],[2,19,2,33],[2,34,2,35],[2,36,2,62],[2,63,2,64],[2,65,2,93],[2,94,2,101],[2,102,2,120],[2,122,2,130],[2,131,2,132],[2,133,2,141],[3,2,3,56],[3,57,3,67],[3,68,3,122],[3,123,4,127],[3,128,3,133],[3,134,3,135],[3,136,3,141],[4,2,4,41],[4,42,4,49],[4,50,4,56],[4,57,5,67],[4,68,4,75],[4,76,4,82],[4,83,4,122],[4,128,4,141],[5,2,5,41],[5,42,5,56],[5,68,5,82],[5,83,5,141],[6,2,6,141],[7,2,7,9],[7,10,7,62],[7,63,7,70],[7,71,13,72],[7,73,7,80],[7,81,7,133],[7,134,7,141],[8,2,11,5],[8,6,8,9],[8,10,8,62],[8,63,8,70],[8,73,11,76],[8,77,8,80],[8,81,8,133],[8,134,8,141],[9,6,9,9],[10,134,10,141],[11,6,11,9],[11,10,11,62],[11,63,11,70],[11,77,11,80],[11,81,11,133],[11,134,11,141],[9,10,9,62],[9,63,9,70],[9,77,9,80],[9,81,9,133],[9,134,9,141],[10,6,10,9],[10,10,10,62],[10,63,10,70],[10,77,10,80],[10,81,10,133],[12,77,12,80],[12,81,12,109],[12,110,12,112],[12,113,12,141],[13,6,13,9],[13,10,13,38],[13,39,13,41],[13,42,13,70],[13,77,13,80],[13,81,13,109],[12,6,12,9],[12,10,12,38],[12,39,12,41],[12,42,12,70],[12,73,13,76],[16,89,17,93],[13,110,13,112],[13,113,13,141],[14,2,14,141],[15,2,15,11],[15,12,15,42],[15,43,15,73],[15,74,15,83],[15,84,15,93],[15,94,15,103],[12,2,13,5],[16,2,16,11],[16,12,16,42],[16,43,16,73],[16,74,17,78],[16,79,17,83],[16,84,17,88],[17,2,17,11],[17,12,17,42],[17,43,17,73],[16,94,17,98],[16,99,17,103],[16,104,17,108],[16,109,17,113],[16,114,17,118],[16,119,17,123],[15,114,15,123],[15,124,15,133],[15,134,15,141],[15,104,15,113],[16,124,17,128],[16,129,17,133],[16,134,17,137],[16,138,17,141],[18,119,19,123],[18,124,19,128],[18,129,19,133],[18,134,19,137],[18,138,19,141],[19,2,19,11],[19,12,19,42],[19,43,19,73],[18,89,19,93],[18,94,19,98],[18,99,19,103],[18,104,19,108],[18,109,19,113],[18,114,19,118],[18,2,18,11],[18,12,18,42],[18,43,18,73],[18,74,19,78],[18,79,19,83],[18,84,19,88],[20,119,20,123],[20,124,20,128],[20,129,20,133],[20,134,20,137],[20,138,20,141],[21,2,21,11],[21,12,21,42],[21,43,21,73],[21,74,21,78],[21,79,21,83],[20,89,20,93],[20,94,20,98],[20,99,20,103],[20,104,20,108],[20,109,20,113],[20,114,20,118],[20,2,20,11],[20,12,20,42],[20,43,20,73],[20,74,20,78],[20,79,20,83],[20,84,20,88],[21,114,21,118],[21,119,21,123],[21,124,21,128],[21,129,21,133],[21,134,21,137],[21,138,21,141],[21,84,21,88],[21,89,21,93],[21,94,21,98],[21,99,21,103],[21,104,21,108],[21,109,21,113],[22,119,22,123],[22,124,22,128],[22,129,22,133],[22,134,22,137],[22,138,22,141],[23,2,23,11],[23,12,23,42],[23,43,23,73],[23,74,23,78],[23,79,23,83],[22,89,22,93],[22,94,22,98],[22,99,22,103],[22,104,22,108],[22,109,22,113],[22,114,22,118],[22,2,22,11],[22,12,22,42],[22,43,22,73],[22,74,22,78],[22,79,22,83],[22,84,22,88],[23,114,23,118],[23,119,23,123],[23,124,23,128],[23,129,23,133],[23,134,23,137],[23,138,23,141],[23,84,23,88],[23,89,23,93],[23,94,23,98],[23,99,23,103],[23,104,23,108],[23,109,23,113],[24,119,24,123],[24,124,24,128],[24,129,24,133],[24,134,24,137],[24,138,24,141],[25,2,25,11],[25,12,25,42],[25,43,25,73],[25,74,25,78],[25,79,25,83],[24,89,24,93],[24,94,24,98],[24,99,24,103],[24,104,24,108],[24,109,24,113],[24,114,24,118],[24,2,24,11],[24,12,24,42],[24,43,24,73],[24,74,24,78],[24,79,24,83],[24,84,24,88],[25,114,25,118],[25,119,25,123],[25,124,25,128],[25,129,25,133],[25,134,25,137],[25,138,25,141],[25,84,25,88],[25,89,25,93],[25,94,25,98],[25,99,25,103],[25,104,25,108],[25,109,25,113],[26,119,26,123],[26,124,26,128],[26,129,26,133],[26,134,26,137],[26,138,26,141],[27,2,27,11],[27,12,27,42],[27,43,27,73],[27,74,27,78],[27,79,27,83],[26,89,26,93],[26,94,26,98],[26,99,26,103],[26,104,26,108],[26,109,26,113],[26,114,26,118],[26,2,26,11],[26,12,26,42],[26,43,26,73],[26,74,26,78],[26,79,26,83],[26,84,26,88],[27,114,27,118],[27,119,27,123],[27,124,27,128],[27,129,27,133],[27,134,27,137],[27,138,27,141],[27,84,27,88],[27,89,27,93],[27,94,27,98],[27,99,27,103],[27,104,27,108],[27,109,27,113],[29,62,29,83],[29,84,29,89],[29,90,29,91],[29,92,29,97],[29,98,29,123],[30,2,30,141],[28,2,28,123],[28,124,29,128],[28,129,29,133],[28,134,29,137],[28,138,29,141],[29,2,29,15],[29,16,29,26],[29,27,29,36],[29,37,29,50],[29,51,29,61],[31,2,31,141],[32,2,32,12],[32,13,32,14],[32,15,32,51],[32,52,32,59],[32,60,32,63],[32,64,32,65],[32,66,32,69],[32,70,32,82],[32,83,32,89],[32,126,32,127],[32,128,32,133],[32,134,32,141],[33,2,33,141],[34,2,35,10],[34,11,35,12],[34,13,35,43],[34,44,41,48],[34,49,41,53],[34,54,34,78],[32,90,32,94],[32,95,32,96],[32,97,32,101],[32,102,32,112],[32,113,32,119],[32,120,32,125],[34,79,34,116],[34,117,34,141],[35,54,39,95],[35,96,40,99],[35,100,39,141],[36,2,36,10],[36,11,36,12],[36,13,36,43],[37,2,37,5],[37,6,38,43],[44,2,44,19],[44,20,44,21],[44,22,44,78],[44,79,44,99],[44,100,44,141],[45,0,45,141],[0,0,44,1],[0,2,0,141],[40,100,40,104],[40,105,40,141],[41,2,41,42],[41,54,41,141],[42,2,42,141],[43,2,43,19],[43,20,43,21],[43,22,43,78],[43,79,43,99],[43,100,43,141],[38,2,38,5],[39,2,39,5],[39,6,40,43],[40,2,40,5],[40,54,40,58],[40,59,40,95]]}
[null,null,"\"Braunschweiger System\"   -   4 gegen 4"]
[null,null,"TT-Kreis Bayreuth"]
[null,null,"Herren",null,null,null,null,null,null,null,null,null,null,null,null,null,null,"-",null,"Verbands",null,null,null,null,null,null,null,null,null,null,null,null,null,null,"-",null,"Mannschaftsspiel",null,null,null,null,null,null,null,null,null,null,null,null,null,null,null,null,null,null,null,null,null,null,null,null,null,null,"-",null,"4. Kreisliga Mitte",null,null,null,null,null,null,null,null,null,null,null,null,null,null,null,null,null,null,null,null,null,null,null,null,null,null,null,null,null,null,null,null,null,null,null,null,"Vorrunde",null,null,null,null,null,null,null,null,null,null,null,null,null,null,null,null,null,null,null,2016,null,null,null,null,null,null,null,null,"/",null,{"$f":"DS3+1","v":2017},null,null,null,null,null,null,null,null,{"$f":"IF(EE29=EI29,\"\",IF(EE29>EI29,C4,BQ4))","v":""}]
[null,null,null,null,null,null,null,null,null,null,null,null,null,null,null,null,null,null,null,null,null,null,null,null,null,null,null,null,null,null,null,null,null,null,null,null,null,null,null,null,null,null,null,null,null,null,null,null,null,null,null,null,null,null,null,null,null,"gegen",null,null,null,null,null,null,null,null,null,null,null,null,null,null,null,null,null,null,null,null,null,null,null,null,null,null,null,null,null,null,null,null,null,null,null,null,null,null,null,null,null,null,null,null,null,null,null,null,null,null,null,null,null,null,null,null,null,null,null,null,null,null,null,null,null,null,null,null,null,null,{"$f":"EE29","v":""},null,null,null,null,null,":",null,{"$f":"EI29","v":""},null,null,null,null,null,{"$f":"IF(BI33=\"\",\"\",IF(EE29=EI29,EM11))","v":""}]
[null,null,"Heimmannschaft  ( A )",null,null,null,null,null,null,null,null,null,null,null,null,null,null,null,null,null,null,null,null,null,null,null,null,null,null,null,null,null,null,null,null,null,null,null,null,null,null,null,508,null,null,null,null,null,null,null,null,null,null,null,null,null,null,null,null,null,null,null,null,null,null,null,null,null,{"$f":"AQ5","v":508},null,null,null,null,null,null,null,null,null,null,null,null,null,null,"Gastmannschaft  ( B )",null,null,null,null,null,null,null,null,null,null,null,null,null,null,null,null,null,null,null,null,null,null,null,null,null,null,null,null,null,null,null,null,null,null,null,null,null,null,null,null,null,null,null,null,"Endergebnis"]
[null,null,null,null,null,null,null,null,null,null,null,null,null,null,null,null,null,null,null,null,null,null,null,null,null,null,null,null,null,null,null,null,null,null,null,null,null,null,null,null,null,null,"Vereins-Nr.",null,null,null,null,null,null,null,null,null,null,null,null,null,null,null,null,null,null,null,null,null,null,null,null,null,"Vereins-Nr."]
[null,null,"Mannschaftsaufstellung"]
[null,null,"Rang",null,null,null,null,null,null,null,"Heimverein ( Mannschaft A )",null,null,null,null,null,null,null,null,null,null,null,null,null,null,null,null,null,null,null,null,null,null,null,null,null,null,null,null,null,null,null,null,null,null,null,null,null,null,null,null,null,null,null,null,null,null,null,null,null,null,null,null,"Pos.",null,null,null,null,null,null,null,null,null,"Rang",null,null,null,null,null,null,null,"Gastverein ( Mannschaft B )",null,null,null,null,null,null,null,null,null,null,null,null,null,null,null,null,null,null,null,null,null,null,null,null,null,null,null,null,null,null,null,null,null,null,null,null,null,null,null,null,null,null,null,null,null,null,null,null,null,null,null,null,"Pos."]
[null,null,"E I N Z E L",null,null,null,"A1",null,null,null,null,null,null,null,null,null,null,null,null,null,null,null,null,null,null,null,null,null,null,null,null,null,null,null,null,null,null,null,null,null,null,null,null,null,null,null,null,null,null,null,null,null,null,null,null,null,null,null,null,null,null,null,null,null,null,null,null,null,null,null,null,null,null,"E I N Z E L",null,null,null,"B1",null,null,null,null,null,null,null,null,null,null,null,null,null,null,null,null,null,null,null,null,null,null,null,null,null,null,null,null,null,null,null,null,null,null,null,null,null,null,null,null,null,null,null,null,null,null,null,null,null,null,null,null,null,null,null,null,null,null,null,null,null,null,null,null,{"$f":"IF(EE29<>EI29,EM3,EM4)","v":""}]
[null,null,null,null,null,null,"A2",null,null,null,null,null,null,null,null,null,null,null,null,null,null,null,null,null,null,null,null,null,null,null,null,null,null,null,null,null,null,null,null,null,null,null,null,null,null,null,null,null,null,null,null,null,null,null,null,null,null,null,null,null,null,null,null,null,null,null,null,null,null,null,null,null,null,null,null,null,null,"B2",null,null,null,null,null,null,null,null,null,null,null,null,null,null,null,null,null,null,null,null,null,null,null,null,null,null,null,null,null,null,null,null,null,null,null,null,null,null,null,null,null,null,null,null,null,null,null,null,null,null,null,null,null,null,null,null,null,null,null,null,null,null,null,null,"Sieger"]
[null,null,null,null,null,null,"A3",null,null,null,null,null,null,null,null,null,null,null,null,null,null,null,null,null,null,null,null,null,null,null,null,null,null,null,null,null,null,null,null,null,null,null,null,null,null,null,null,null,null,null,null,null,null,null,null,null,null,null,null,null,null,null,null,null,null,null,null,null,null,null,null,null,null,null,null,null,null,"B3",null,null,null,null,null,null,null,null,null,null,null,null,null,null,null,null,null,null,null,null,null,null,null,null,null,null,null,null,null,null,null,null,null,null,null,null,null,null,null,null,null,null,null,null,null,null,null,null,null,null,null,null,null,null,null,null,null,null,null,null,null,null,null,null,"Unentschieden"]
[null,null,null,null,null,null,"A4",null,null,null,null,null,null,null,null,null,null,null,null,null,null,null,null,null,null,null,null,null,null,null,null,null,null,null,null,null,null,null,null,null,null,null,null,null,null,null,null,null,null,null,null,null,null,null,null,null,null,null,null,null,null,null,null,null,null,null,null,null,null,null,null,null,null,null,null,null,null,"B4"]
[null,null,"Doppel",null,null,null,"A1",null,null,null,null,null,null,null,null,null,null,null,null,null,null,null,null,null,null,null,null,null,null,null,null,null,null,null,null,null,null,null,null,"/",null,null,null,null,null,null,null,null,null,null,null,null,null,null,null,null,null,null,null,null,null,null,null,null,null,null,null,null,null,null,null,null,null,"Doppel",null,null,null,"B1",null,null,null,null,null,null,null,null,null,null,null,null,null,null,null,null,null,null,null,null,null,null,null,null,null,null,null,null,null,null,null,null,"/"]
[null,null,null,null,null,null,"A2",null,null,null,null,null,null,null,null,null,null,null,null,null,null,null,null,null,null,null,null,null,null,null,null,null,null,null,null,null,null,null,null,"/",null,null,null,null,null,null,null,null,null,null,null,null,null,null,null,null,null,null,null,null,null,null,null,null,null,null,null,null,null,null,null,null,null,null,null,null,null,"B2",null,null,null,null,null,null,null,null,null,null,null,null,null,null,null,null,null,null,null,null,null,null,null,null,null,null,null,null,null,null,null,null,"/"]
[null,null,"created by Gerhard Nidetzky"]
[null,null,"Spielfolge",null,null,null,null,null,null,null,null,null,"Heimverein ( Mannschaft A )",null,null,null,null,null,null,null,null,null,null,null,null,null,null,null,null,null,null,null,null,null,null,null,null,null,null,null,null,null,null,"Gastverein ( Mannschaft B )",null,null,null,null,null,null,null,null,null,null,null,null,null,null,null,null,null,null,null,null,null,null,null,null,null,null,null,null,null,null,"1. Satz",null,null,null,null,null,null,null,null,null,"2. Satz",null,null,null,null,null,null,null,null,null,"3. Satz",null,null,null,null,null,null,null,null,null,"4. Satz",null,null,null,null,null,null,null,null,null,"5. Satz",null,null,null,null,null,null,null,null,null,"Sätze",null,null,null,null,null,null,null,null,null,"Spiele",null,null,null,null,null,null,null,{"$f":"C4","v":0}]
[null,null,"Doppel",null,null,null,null,null,null,null,null,null,{"$f":"K13","v":0},null,null,null,null,null,null,null,null,null,null,null,null,null,null,null,null,null,null,null,null,null,null,null,null,null,null,null,null,null,null,{"$f":"CD13","v":0},null,null,null,null,null,null,null,null,null,null,null,null,null,null,null,null,null,null,null,null,null,null,null,null,null,null,null,null,null,null,null,null,null,null,null,null,null,null,null,null,null,null,null,null,null,null,null,null,null,null,null,null,null,null,null,null,null,null,null,null,null,null,null,null,null,null,null,null,null,null,null,null,null,null,null,null,null,null,null,null,{"$f":"IF(BW17=\"\",\"\",IF(BW17>CB17,1,0)+IF(CG17>CL17,1,0)+IF(CQ17>CV17,1,0)+IF(DA17>DF17,1,0)+IF(DK17>DP17,1,0))","v":""},null,null,null,null,{"$f":"IF(BW17=\"\",\"\",IF(BW17<CB17,1,0)+IF(CG17<CL17,1,0)+IF(CQ17<CV17,1,0)+IF(DA17<DF17,1,0)+IF(DK17<DP17,1,0))","v":""},null,null,null,null,{"$f":"IF(DU17=\"\",\"\",IF(DU17>DZ17,1,0))","v":""},null,null,null,{"$f":"IF(DU17=\"\",\"\",IF(DU17<DZ17,1,0))","v":""},null,null,null,{"$f":"SUM(BW17:CA28)","v":0}]
[null,null,"A1 - B1",null,null,null,null,null,null,null,null,null,{"$f":"AQ13","v":0},null,null,null,null,null,null,null,null,null,null,null,null,null,null,null,null,null,null,null,null,null,null,null,null,null,null,null,null,null,null,{"$f":"DJ13","v":0},null,null,null,null,null,null,null,null,null,null,null,null,null,null,null,null,null,null,null,null,null,null,null,null,null,null,null,null,null,null,null,null,null,null,null,null,null,null,null,null,null,null,null,null,null,null,null,null,null,null,null,null,null,null,null,null,null,null,null,null,null,null,null,null,null,null,null,null,null,null,null,null,null,null,null,null,null,null,null,null,null,null,null,null,null,null,null,null,null,null,null,null,null,null,null,null,null,null,{"$f":"SUM(CG17:CK28)","v":0}]
[null,null,"Doppel",null,null,null,null,null,null,null,null,null,{"$f":"K14","v":0},null,null,null,null,null,null,null,null,null,null,null,null,null,null,null,null,null,null,null,null,null,null,null,null,null,null,null,null,null,null,{"$f":"CD14","v":0},null,null,null,null,null,null,null,null,null,null,null,null,null,null,null,null,null,null,null,null,null,null,null,null,null,null,null,null,null,null,null,null,null,null,null,null,null,null,null,null,null,null,null,null,null,null,null,null,null,null,null,null,null,null,null,null,null,null,null,null,null,null,null,null,null,null,null,null,null,null,null,null,null,null,null,null,null,null,null,null,{"$f":"IF(BW19=\"\",\"\",IF(BW19>CB19,1,0)+IF(CG19>CL19,1,0)+IF(CQ19>CV19,1,0)+IF(DA19>DF19,1,0)+IF(DK19>DP19,1,0))","v":""},null,null,null,null,{"$f":"IF(BW19=\"\",\"\",IF(BW19<CB19,1,0)+IF(CG19<CL19,1,0)+IF(CQ19<CV19,1,0)+IF(DA19<DF19,1,0)+IF(DK19<DP19,1,0))","v":""},null,null,null,null,{"$f":"IF(DU19=\"\",\"\",IF(DU19>DZ19,1,0))","v":""},null,null,null,{"$f":"IF(DU19=\"\",\"\",IF(DU19<DZ19,1,0))","v":""},null,null,null,{"$f":"SUM(CQ17:CU28)","v":0}]
[null,null,"A2 - B2",null,null,null,null,null,null,null,null,null,{"$f":"AQ14","v":0},null,null,null,null,null,null,null,null,null,null,null,null,null,null,null,null,null,null,null,null,null,null,null,null,null,null,null,null,null,null,{"$f":"DJ14","v":0},null,null,null,null,null,null,null,null,null,null,null,null,null,null,null,null,null,null,null,null,null,null,null,null,null,null,null,null,null,null,null,null,null,null,null,null,null,null,null,null,null,null,null,null,null,null,null,null,null,null,null,null,null,null,null,null,null,null,null,null,null,null,null,null,null,null,null,null,null,null,null,null,null,null,null,null,null,null,null,null,null,null,null,null,null,null,null,null,null,null,null,null,null,null,null,null,null,null,{"$f":"SUM(DA17:DE28)","v":0}]
[null,null,"E A1-B1",null,null,null,null,null,null,null,null,null,{"$f":"K9","v":0},null,null,null,null,null,null,null,null,null,null,null,null,null,null,null,null,null,null,null,null,null,null,null,null,null,null,null,null,null,null,{"$f":"CD9","v":0},null,null,null,null,null,null,null,null,null,null,null,null,null,null,null,null,null,null,null,null,null,null,null,null,null,null,null,null,null,null,null,null,null,null,null,null,null,null,null,null,null,null,null,null,null,null,null,null,null,null,null,null,null,null,null,null,null,null,null,null,null,null,null,null,null,null,null,null,null,null,null,null,null,null,null,null,null,null,null,null,{"$f":"IF(BW21=\"\",\"\",IF(BW21>CB21,1,0)+IF(CG21>CL21,1,0)+IF(CQ21>CV21,1,0)+IF(DA21>DF21,1,0)+IF(DK21>DP21,1,0))","v":""},null,null,null,null,{"$f":"IF(BW21=\"\",\"\",IF(BW21<CB21,1,0)+IF(CG21<CL21,1,0)+IF(CQ21<CV21,1,0)+IF(DA21<DF21,1,0)+IF(DK21<DP21,1,0))","v":""},null,null,null,null,{"$f":"IF(DU21=\"\",\"\",IF(DU21>DZ21,1,0))","v":""},null,null,null,{"$f":"IF(DU21=\"\",\"\",IF(DU21<DZ21,1,0))","v":""},null,null,null,{"$f":"SUM(DK17:DO28)","v":0}]
[null,null,"E A2-B2",null,null,null,null,null,null,null,null,null,{"$f":"K10","v":0},null,null,null,null,null,null,null,null,null,null,null,null,null,null,null,null,null,null,null,null,null,null,null,null,null,null,null,null,null,null,{"$f":"CD10","v":0},null,null,null,null,null,null,null,null,null,null,null,null,null,null,null,null,null,null,null,null,null,null,null,null,null,null,null,null,null,null,null,null,null,null,null,null,null,null,null,null,null,null,null,null,null,null,null,null,null,null,null,null,null,null,null,null,null,null,null,null,null,null,null,null,null,null,null,null,null,null,null,null,null,null,null,null,null,null,null,null,{"$f":"IF(BW22=\"\",\"\",IF(BW22>CB22,1,0)+IF(CG22>CL22,1,0)+IF(CQ22>CV22,1,0)+IF(DA22>DF22,1,0)+IF(DK22>DP22,1,0))","v":""},null,null,null,null,{"$f":"IF(BW22=\"\",\"\",IF(BW22<CB22,1,0)+IF(CG22<CL22,1,0)+IF(CQ22<CV22,1,0)+IF(DA22<DF22,1,0)+IF(DK22<DP22,1,0))","v":""},null,null,null,null,{"$f":"IF(DU22=\"\",\"\",IF(DU22>DZ22,1,0))","v":""},null,null,null,{"$f":"IF(DU22=\"\",\"\",IF(DU22<DZ22,1,0))","v":""},null,null,null,{"$f":"SUM(EM17:EM21)","v":0}]
[null,null,"E A3-B3",null,null,null,null,null,null,null,null,null,{"$f":"K11","v":0},null,null,null,null,null,null,null,null,null,null,null,null,null,null,null,null,null,null,null,null,null,null,null,null,null,null,null,null,null,null,{"$f":"CD11","v":0},null,null,null,null,null,null,null,null,null,null,null,null,null,null,null,null,null,null,null,null,null,null,null,null,null,null,null,null,null,null,null,null,null,null,null,null,null,null,null,null,null,null,null,null,null,null,null,null,null,null,null,null,null,null,null,null,null,null,null,null,null,null,null,null,null,null,null,null,null,null,null,null,null,null,null,null,null,null,null,null,{"$f":"IF(BW23=\"\",\"\",IF(BW23>CB23,1,0)+IF(CG23>CL23,1,0)+IF(CQ23>CV23,1,0)+IF(DA23>DF23,1,0)+IF(DK23>DP23,1,0))","v":""},null,null,null,null,{"$f":"IF(BW23=\"\",\"\",IF(BW23<CB23,1,0)+IF(CG23<CL23,1,0)+IF(CQ23<CV23,1,0)+IF(DA23<DF23,1,0)+IF(DK23<DP23,1,0))","v":""},null,null,null,null,{"$f":"IF(DU23=\"\",\"\",IF(DU23>DZ23,1,0))","v":""},null,null,null,{"$f":"IF(DU23=\"\",\"\",IF(DU23<DZ23,1,0))","v":""}]
[null,null,"E A4-B4",null,null,null,null,null,null,null,null,null,{"$f":"K12","v":0},null,null,null,null,null,null,null,null,null,null,null,null,null,null,null,null,null,null,null,null,null,null,null,null,null,null,null,null,null,null,{"$f":"CD12","v":0},null,null,null,null,null,null,null,null,null,null,null,null,null,null,null,null,null,null,null,null,null,null,null,null,null,null,null,null,null,null,null,null,null,null,null,null,null,null,null,null,null,null,null,null,null,null,null,null,null,null,null,null,null,null,null,null,null,null,null,null,null,null,null,null,null,null,null,null,null,null,null,null,null,null,null,null,null,null,null,null,"",null,null,null,null,"",null,null,null,null,"",null,null,null,"",null,null,null,{"$f":"BQ4","v":0}]
[null,null,"E A1-B2",null,null,null,null,null,null,null,null,null,{"$f":"K9","v":0},null,null,null,null,null,null,null,null,null,null,null,null,null,null,null,null,null,null,null,null,null,null,null,null,null,null,null,null,null,null,{"$f":"CD10","v":0},null,null,null,null,null,null,null,null,null,null,null,null,null,null,null,null,null,null,null,null,null,null,null,null,null,null,null,null,null,null,null,null,null,null,null,null,null,null,null,null,null,null,null,null,null,null,null,null,null,null,null,null,null,null,null,null,null,null,null,null,null,null,null,null,null,null,null,null,null,null,null,null,null,null,null,null,null,null,null,null,"",null,null,null,null,"",null,null,null,null,"",null,null,null,"",null,null,null,{"$f":"SUM(CB17:CF28)","v":0}]
[null,null,"E A2-B1",null,null,null,null,null,null,null,null,null,{"$f":"K10","v":0},null,null,null,null,null,null,null,null,null,null,null,null,null,null,null,null,null,null,null,null,null,null,null,null,null,null,null,null,null,null,{"$f":"CD9","v":0},null,null,null,null,null,null,null,null,null,null,null,null,null,null,null,null,null,null,null,null,null,null,null,null,null,null,null,null,null,null,null,null,null,null,null,null,null,null,null,null,null,null,null,null,null,null,null,null,null,null,null,null,null,null,null,null,null,null,null,null,null,null,null,null,null,null,null,null,null,null,null,null,null,null,null,null,null,null,null,null,"",null,null,null,null,"",null,null,null,null,"",null,null,null,"",null,null,null,{"$f":"SUM(CL17:CP28)","v":0}]
[null,null,"E A3-B4",null,null,null,null,null,null,null,null,null,{"$f":"K11","v":0},null,null,null,null,null,null,null,null,null,null,null,null,null,null,null,null,null,null,null,null,null,null,null,null,null,null,null,null,null,null,{"$f":"CD12","v":0},null,null,null,null,null,null,null,null,null,null,null,null,null,null,null,null,null,null,null,null,null,null,null,null,null,null,null,null,null,null,null,null,null,null,null,null,null,null,null,null,null,null,null,null,null,null,null,null,null,null,null,null,null,null,null,null,null,null,null,null,null,null,null,null,null,null,null,null,null,null,null,null,null,null,null,null,null,null,null,null,"",null,null,null,null,"",null,null,null,null,"",null,null,null,"",null,null,null,{"$f":"SUM(CV17:CZ28)","v":0}]
[null,null,"E A4-B3",null,null,null,null,null,null,null,null,null,{"$f":"K12","v":0},null,null,null,null,null,null,null,null,null,null,null,null,null,null,null,null,null,null,null,null,null,null,null,null,null,null,null,null,null,null,{"$f":"CD11","v":0},null,null,null,null,null,null,null,null,null,null,null,null,null,null,null,null,null,null,null,null,null,null,null,null,null,null,null,null,null,null,null,null,null,null,null,null,null,null,null,null,null,null,null,null,null,null,null,null,null,null,null,null,null,null,null,null,null,null,null,null,null,null,null,null,null,null,null,null,null,null,null,null,null,null,null,null,null,null,null,null,"",null,null,null,null,"",null,null,null,null,"",null,null,null,"",null,null,null,{"$f":"SUM(DF17:DJ28)","v":0}]
[null,null,null,null,null,null,null,null,null,null,null,null,null,null,null,null,null,null,null,null,null,null,null,null,null,null,null,null,null,null,null,null,null,null,null,null,null,null,null,null,null,null,null,null,null,null,null,null,null,null,null,null,null,null,null,null,null,null,null,null,null,null,null,null,null,null,null,null,null,null,null,null,null,null,null,null,null,null,null,null,null,null,null,null,null,null,null,null,null,null,null,null,null,null,null,null,null,null,null,null,null,null,null,null,null,null,null,null,null,null,null,null,null,null,null,null,null,null,null,null,null,null,null,null,{"$f":"IF(DU17=\"\",\"\",SUM(DU17:DY28))","v":""},null,null,null,null,{"$f":"IF(DZ17=\"\",\"\",SUM(DZ17:ED28))","v":""},null,null,null,null,{"$f":"IF(EE17=\"\",\"\",SUM(EE17:EH28))","v":""},null,null,null,{"$f":"IF(EI17=\"\",\"\",SUM(EI17:EL28))","v":""},null,null,null,{"$f":"SUM(DP17:DT28)","v":0}]
[null,null,"Spielbeginn :",null,null,null,null,null,null,null,null,null,null,null,null,null,null,null,null,null,null,null,null,null,null,null,null,"Uhr",null,null,null,null,null,null,null,null,null,"Spielende :",null,null,null,null,null,null,null,null,null,null,null,null,null,null,null,null,null,null,null,null,null,null,null,null,"Uhr",null,null,null,null,null,null,null,null,null,null,null,null,null,null,null,null,null,null,null,null,null,{"$f":"EM22","v":0},null,null,null,null,null,":",null,{"$f":"EM30","v":0},null,null,null,null,null," Bälle",null,null,null,null,null,null,null,null,null,null,null,null,null,null,null,null,null,null,null,null,null,null,null,null,null,null,null,null,null,null,null,null,null,null,null,null,null,null,null,null,null,null,null,{"$f":"SUM(EM25:EM29)","v":0}]
[]
[]
[null,null,{"$f":"IF(BI33=BO33,\"\",IF(BI33>BO33,EM10,EM12))","v":""},null,null,null,null,null,null,null,null,null,null,":",null,{"$f":"EM9","v":""},null,null,null,null,null,null,null,null,null,null,null,null,null,null,null,null,null,null,null,null,null,null,null,null,null,null,null,null,null,null,null,null,null,null,null,null,"mit :",null,null,null,null,null,null,null,{"$f":"IF(EE29>EI29,EE29,EI29)","v":""},null,null,null,":",null,{"$f":"IF(EE29<EI29,EE29,EI29)","v":""},null,null,null,"Spielen",null,null,null,null,null,null,null,null,null,null,null,null,"und",null,null,null,null,null,null,{"$f":"IF(EE29>=EI29,DU29,DZ29)","v":""},null,null,null,null,":",null,{"$f":"IF(EE29<EI29,DU29,DZ29)","v":""},null,null,null,null,"Sätzen",null,null,null,null,null,null,null,null,null,null,"und",null,null,null,null,null,null,{"$f":"IF(EE29>=EI29,EM22,EM30)","v":0},null,null,null,null,null,":",null,{"$f":"IF(EE29<EI29,EM22,EM30)","v":0},null,null,null,null,null," Bälle"]
[]
[null,null,"Spielort ",null,null,null,null,null,null,null,null,":",null,null,null,null,null,null,null,null,null,null,null,null,null,null,null,null,null,null,null,null,null,null,null,null,null,null,null,null,null,null,null,null,null,null,null,null,null,null,null,null,null,null,"Heimverein",null,null,null,null,null,null,null,null,null,null,null,null,null,null,null,null,null,null,null,null,null,null,null,null,"Unterschriften Mannschaftsführer",null,null,null,null,null,null,null,null,null,null,null,null,null,null,null,null,null,null,null,null,null,null,null,null,null,null,null,null,null,null,null,null,null,null,null,null,null,"Gastverein"]
[]
[null,null,"Datum",null,null,null,null,null,null,null,null,":",null,{"$f":"TODAY()","v":"2016-06-08"}]
[null,null,null,null,null,null," kein Protest"]
[null,null,"X"]
[null,null,null,null,null,null,"Protest - siehe Anlage"]
[null,null,null,null,null,null,null,null,null,null,null,null,null,null,null,null,null,null,null,null,null,null,null,null,null,null,null,null,null,null,null,null,null,null,null,null,null,null,null,null,null,null,null,null,null,null,null,null,null,null,null,null,null,null,"Mf :",null,null,null,null,null,null,null,null,null,null,null,null,null,null,null,null,null,null,null,null,null,null,null,null,null,null,null,null,null,null,null,null,null,null,null,null,null,null,null,null,null,null,null,null,null,"Mf :"]
[]
[]
[null,null," Staffelleiter",null,null,null,null,null,null,null,null,null,null,null,null,null,null,null,null,null,":",null,"Matthias Höger - Erlenweg 8, 86697 Unterhausen",null,null,null,null,null,null,null,null,null,null,null,null,null,null,null,null,null,null,null,null,null,null,null,null,null,null,null,null,null,null,null,null,null,null,null,null,null,null,null,null,null,null,null,null,null,null,null,null,null,null,null,null,null,null,null,null,"0176 - 465 777 99",null,null,null,null,null,null,null,null,null,null,null,null,null,null,null,null,null,null,null,null,"matthias.hoeger@ttkreis-bayreuth.de"]
[null,null," Mannschaftsführer",null,null,null,null,null,null,null,null,null,null,null,null,null,null,null,null,null,":"]

{"sheet":"4g3","index":2,"n_rows":43,"n_cols":143,"rows_kept":43,"cut":false,"hidden":false,"merged":[[0,143,44,144],[1,2,1,141],[2,2,2,16],[2,17,2,18],[2,19,2,33],[2,34,2,35],[2,36,2,62],[2,63,2,64],[2,65,2,93],[2,94,2,101],[2,102,2,120],[2,122,2,130],[2,131,2,132],[2,133,2,141],[3,2,3,56],[3,57,3,67],[3,68,3,122],[3,123,4,127],[3,128,3,133],[3,134,3,135],[3,136,3,141],[4,2,4,41],[4,42,4,49],[4,50,4,56],[4,57,5,67],[4,68,4,75],[4,76,4,82],[4,83,4,122],[4,128,4,141],[5,2,5,41],[5,42,5,56],[5,68,5,82],[5,83,5,141],[6,2,6,141],[7,2,7,9],[7,10,7,62],[7,63,7,70],[7,71,12,72],[7,73,7,80],[7,81,7,133],[7,134,7,141],[8,2,11,5],[8,6,8,9],[8,10,8,62],[8,63,8,70],[8,73,10,76],[8,77,8,80],[8,81,8,133],[8,134,8,141],[9,6,9,9],[9,10,9,62],[9,63,9,70],[9,77,9,80],[9,81,9,133],[9,134,9,141],[10,6,10,9],[10,10,10,62],[10,63,10,70],[10,77,10,80],[10,81,10,133],[12,73,12,76],[12,77,12,80],[12,81,12,109],[12,110,12,112],[12,113,12,141],[13,2,13,141],[10,134,10,141],[11,6,11,9],[11,10,11,62],[11,63,11,70],[11,73,11,141],[12,2,12,5],[12,6,12,9],[12,10,12,38],[12,39,12,41],[12,42,12,70],[14,104,14,113],[14,114,14,123],[15,119,16,123],[14,124,14,133],[14,134,14,141],[15,2,15,11],[15,12,15,42],[15,43,15,73],[15,74,16,78],[15,79,16,83],[15,84,16,88],[14,2,14,11],[14,12,14,42],[14,43,14,73],[14,74,14,83],[14,84,14,93],[14,94,14,103],[15,138,16,141],[16,2,16,11],[16,12,16,42],[16,43,16,73],[15,89,16,93],[15,94,16,98],[15,99,16,103],[15,104,16,108],[15,109,16,113],[15,114,16,118],[17,2,17,4],[17,5,17,11],[17,12,17,42],[17,43,17,73],[17,74,17,78],[17,79,17,83],[17,84,17,88],[17,89,17,93],[17,94,17,98],[17,99,17,103],[17,104,17,108],[17,109,17,113],[15,124,16,128],[15,129,16,133],[15,134,16,137],[17,114,17,118],[17,119,17,123],[17,124,17,128],[17,129,17,133],[17,134,17,137],[17,138,17,141],[18,129,18,133],[18,134,18,137],[18,138,18,141],[18,84,18,88],[18,89,18,93],[18,94,18,98],[18,99,18,103],[18,104,18,108],[18,109,18,113],[19,2,19,4],[19,5,19,11],[19,12,19,42],[19,43,19,73],[19,74,19,78],[19,79,19,83],[18,114,18,118],[18,119,18,123],[18,124,18,128],[18,2,18,4],[18,5,18,11],[18,12,18,42],[18,43,18,73],[18,74,18,78],[18,79,18,83],[19,114,19,118],[19,119,19,123],[19,124,19,128],[19,129,19,133],[19,134,19,137],[19,138,19,141],[19,84,19,88],[19,89,19,93],[19,94,19,98],[19,99,19,103],[19,104,19,108],[19,109,19,113],[20,129,20,133],[20,134,20,137],[20,138,20,141],[20,84,20,88],[20,89,20,93],[20,94,20,98],[20,99,20,103],[20,104,20,108],[20,109,20,113],[21,2,21,4],[21,5,21,11],[21,12,21,42],[21,43,21,73],[21,74,21,78],[21,79,21,83],[20,114,20,118],[20,119,20,123],[20,124,20,128],[20,2,20,4],[20,5,20,11],[20,12,20,42],[20,43,20,73],[20,74,20,78],[20,79,20,83],[21,114,21,118],[21,119,21,123],[21,124,21,128],[21,129,21,133],[21,134,21,137],[21,138,21,141],[21,84,21,88],[21,89,21,93],[21,94,21,98],[21,99,21,103],[21,104,21,108],[21,109,21,113],[22,129,22,133],[22,134,22,137],[22,138,22,141],[22,84,22,88],[22,89,22,93],[22,94,22,98],[22,99,22,103],[22,104,22,108],[22,109,22,113],[23,2,23,4],[23,5,23,11],[23,12,23,42],[23,43,23,73],[23,74,23,78],[23,79,23,83],[22,114,22,118],[22,119,22,123],[22,124,22,128],[22,2,22,4],[22,5,22,11],[22,12,22,42],[22,43,22,73],[22,74,22,78],[22,79,22,83],[23,114,23,118],[23,119,23,123],[23,124,23,128],[23,129,23,133],[23,134,23,137],[23,138,23,141],[23,84,23,88],[23,89,23,93],[23,94,23,98],[23,99,23,103],[23,104,23,108],[23,109,23,113],[24,129,24,133],[24,134,24,137],[24,138,24,141],[24,84,24,88],[24,89,24,93],[24,94,24,98],[24,99,24,103],[24,104,24,108],[24,109,24,113],[25,2,25,4],[25,5,25,11],[25,12,25,42],[25,43,25,73],[25,74,25,78],[25,79,25,83],[24,114,24,118],[24,119,24,123],[24,124,24,128],[24,2,24,4],[24,5,24,11],[24,12,24,42],[24,43,24,73],[24,74,24,78],[24,79,24,83],[25,114,25,118],[25,119,25,123],[25,124,25,128],[25,129,25,133],[25,134,25,137],[25,138,25,141],[25,84,25,88],[25,89,25,93],[25,94,25,98],[25,99,25,103],[25,104,25,108],[25,109,25,113],[27,62,27,83],[27,84,27,89],[27,90,27,91],[27,92,27,97],[27,98,27,123],[28,2,28,141],[26,2,26,123],[26,124,27,128],[26,129,27,133],[26,134,27,137],[26,138,27,141],[27,2,27,15],[27,16,27,26],[27,27,27,36],[27,37,27,50],[27,51,27,61],[29,2,29,141],[30,2,30,12],[30,13,30,14],[30,15,30,51],[30,52,30,59],[30,60,30,63],[30,64,30,65],[30,66,30,69],[30,70,30,82],[30,83,30,89],[30,126,30,127],[30,128,30,133],[30,134,30,141],[31,2,31,141],[32,2,33,10],[32,11,33,12],[32,13,33,43],[32,44,39,48],[32,49,39,53],[32,54,32,78],[30,90,30,94],[30,95,30,96],[30,97,30,101],[30,102,30,112],[30,113,30,119],[30,120,30,125],[32,79,32,116],[32,117,32,141],[33,54,37,95],[33,96,38,99],[33,100,37,141],[34,2,34,10],[34,11,34,12],[34,13,34,43],[35,2,35,5],[35,6,36,43],[42,2,42,19],[42,20,42,21],[42,22,42,78],[42,79,42,99],[42,100,42,141],[43,0,44,141],[0,0,42,1],[0,2,0,141],[38,100,38,104],[38,105,38,141],[39,2,39,42],[39,54,39,141],[40,2,40,141],[41,2,41,19],[41,20,41,21],[41,22,41,78],[41,79,41,99],[41,100,41,141],[36,2,36,5],[37,2,37,5],[37,6,38,43],[38,2,38,5],[38,54,38,58],[38,59,38,95]]}
[null,null,"\"Braunschweiger System\"   -   4 gegen 3"]
[null,null,{"$f":"'4g4'!C2","v":"TT-Kreis Bayreuth"}]
[null,null,{"$f":"'4g4'!C3","v":"Herren"},null,null,null,null,null,null,null,null,null,null,null,null,null,null,"-",null,"Verbands",null,null,null,null,null,null,null,null,null,null,null,null,null,null,"-",null,"Mannschaftsspiel",null,null,null,null,null,null,null,null,null,null,null,null,null,null,null,null,null,null,null,null,null,null,null,null,null,null,"-",null,{"$f":"'4g4'!BN3","v":"4. Kreisliga Mitte"},null,null,null,null,null,null,null,null,null,null,null,null,null,null,null,null,null,null,null,null,null,null,null,null,null,null,null,null,null,null,null,null,null,null,null,null,{"$f":"'4g4'!CY3","v":"Vorrunde"},null,null,null,null,null,null,null,null,null,null,null,null,null,null,null,null,null,null,null,{"$f":"'4g4'!DS3","v":2016},null,null,null,null,null,null,null,null,"/",null,{"$f":"DS3+1","v":2017},null,null,null,null,null,null,null,null,{"$f":"IF(EE27=EI27,\"\",IF(EE27>EI27,C4,BQ4))","v":""}]
[null,null,{"$f":"'4g4'!C4","v":0},null,null,null,null,null,null,null,null,null,null,null,null,null,null,null,null,null,null,null,null,null,null,null,null,null,null,null,null,null,null,null,null,null,null,null,null,null,null,null,null,null,null,null,null,null,null,null,null,null,null,null,null,null,null,"gegen",null,null,null,null,null,null,null,null,null,null,null,null,null,null,null,null,null,null,null,null,null,null,null,null,null,null,null,null,null,null,null,null,null,null,null,null,null,null,null,null,null,null,null,null,null,null,null,null,null,null,null,null,null,null,null,null,null,null,null,null,null,null,null,null,null,null,null,null,null,null,{"$f":"EE27","v":""},null,null,null,null,null,":",null,{"$f":"EI27","v":""},null,null,null,null,null,{"$f":"IF(BI31=\"\",\"\",IF(EE27=EI27,EM11))","v":""}]
[null,null,"Heimmannschaft  ( A )",null,null,null,null,null,null,null,null,null,null,null,null,null,null,null,null,null,null,null,null,null,null,null,null,null,null,null,null,null,null,null,null,null,null,null,null,null,null,null,{"$f":"'4g4'!AQ5","v":508},null,null,null,null,null,null,null,{"$f":"'4g4'!AY5","v":0},null,null,null,null,null,null,null,null,null,null,null,null,null,null,null,null,null,{"$f":"AQ5","v":508},null,null,null,null,null,null,null,null,null,null,null,null,null,null,"Gastmannschaft  ( B )",null,null,null,null,null,null,null,null,null,null,null,null,null,null,null,null,null,null,null,null,null,null,null,null,null,null,null,null,null,null,null,null,null,null,null,null,null,null,null,null,null,null,null,null,"Endergebnis"]
[null,null,null,null,null,null,null,null,null,null,null,null,null,null,null,null,null,null,null,null,null,null,null,null,null,null,null,null,null,null,null,null,null,null,null,null,null,null,null,null,null,null,"Vereins-Nr.",null,null,null,null,null,null,null,null,null,null,null,null,null,null,null,null,null,null,null,null,null,null,null,null,null,"Vereins-Nr."]
[null,null,"Mannschaftsaufstellung"]
[null,null,"Rang",null,null,null,null,null,null,null,"Heimverein ( Mannschaft A )",null,null,null,null,null,null,null,null,null,null,null,null,null,null,null,null,null,null,null,null,null,null,null,null,null,null,null,null,null,null,null,null,null,null,null,null,null,null,null,null,null,null,null,null,null,null,null,null,null,null,null,null,"Pos.",null,null,null,null,null,null,null,null,null,"Rang",null,null,null,null,null,null,null,"Gastverein ( Mannschaft B )",null,null,null,null,null,null,null,null,null,null,null,null,null,null,null,null,null,null,null,null,null,null,null,null,null,null,null,null,null,null,null,null,null,null,null,null,null,null,null,null,null,null,null,null,null,null,null,null,null,null,null,null,"Pos."]
[null,null,"E I N Z E L",null,null,null,"A1",null,null,null,null,null,null,null,null,null,null,null,null,null,null,null,null,null,null,null,null,null,null,null,null,null,null,null,null,null,null,null,null,null,null,null,null,null,null,null,null,null,null,null,null,null,null,null,null,null,null,null,null,null,null,null,null,null,null,null,null,null,null,null,null,null,null,"E I N Z E L",null,null,null,"B1",null,null,null,null,null,null,null,null,null,null,null,null,null,null,null,null,null,null,null,null,null,null,null,null,null,null,null,null,null,null,null,null,null,null,null,null,null,null,null,null,null,null,null,null,null,null,null,null,null,null,null,null,null,null,null,null,null,null,null,null,null,null,null,null,{"$f":"IF(EE27<>EI27,EM3,EM4)","v":""}]
[null,null,null,null,null,null,"A2",null,null,null,null,null,null,null,null,null,null,null,null,null,null,null,null,null,null,null,null,null,null,null,null,null,null,null,null,null,null,null,null,null,null,null,null,null,null,null,null,null,null,null,null,null,null,null,null,null,null,null,null,null,null,null,null,null,null,null,null,null,null,null,null,null,null,null,null,null,null,"B2",null,null,null,null,null,null,null,null,null,null,null,null,null,null,null,null,null,null,null,null,null,null,null,null,null,null,null,null,null,null,null,null,null,null,null,null,null,null,null,null,null,null,null,null,null,null,null,null,null,null,null,null,null,null,null,null,null,null,null,null,null,null,null,null,"Sieger"]
[null,null,null,null,null,null,"A3",null,null,null,null,null,null,null,null,null,null,null,null,null,null,null,null,null,null,null,null,null,null,null,null,null,null,null,null,null,null,null,null,null,null,null,null,null,null,null,null,null,null,null,null,null,null,null,null,null,null,null,null,null,null,null,null,null,null,null,null,null,null,null,null,null,null,null,null,null,null,"B3",null,null,null,null,null,null,null,null,null,null,null,null,null,null,null,null,null,null,null,null,null,null,null,null,null,null,null,null,null,null,null,null,null,null,null,null,null,null,null,null,null,null,null,null,null,null,null,null,null,null,null,null,null,null,null,null,null,null,null,null,null,null,null,null,"Unentschieden"]
[null,null,null,null,null,null,"A4"]
[null,null,"D",null,null,null,"A1",null,null,null,null,null,null,null,null,null,null,null,null,null,null,null,null,null,null,null,null,null,null,null,null,null,null,null,null,null,null,null,null,"/",null,null,null,null,null,null,null,null,null,null,null,null,null,null,null,null,null,null,null,null,null,null,null,null,null,null,null,null,null,null,null,null,null,"D",null,null,null,"B1",null,null,null,null,null,null,null,null,null,null,null,null,null,null,null,null,null,null,null,null,null,null,null,null,null,null,null,null,null,null,null,null,"/"]
[null,null,{"$f":"'4g4'!C15","v":"created by Gerhard Nidetzky"}]
[null,null,"Spielfolge",null,null,null,null,null,null,null,null,null,"Heimverein ( Mannschaft A )",null,null,null,null,null,null,null,null,null,null,null,null,null,null,null,null,null,null,null,null,null,null,null,null,null,null,null,null,null,null,"Gastverein ( Mannschaft B )",null,null,null,null,null,null,null,null,null,null,null,null,null,null,null,null,null,null,null,null,null,null,null,null,null,null,null,null,null,null,"1. Satz",null,null,null,null,null,null,null,null,null,"2. Satz",null,null,null,null,null,null,null,null,null,"3. Satz",null,null,null,null,null,null,null,null,null,"4. Satz",null,null,null,null,null,null,null,null,null,"5. Satz",null,null,null,null,null,null,null,null,null,"Sätze",null,null,null,null,null,null,null,null,null,"Spiele"]
[null,null,"Doppel",null,null,null,null,null,null,null,null,null,{"$f":"K13","v":0},null,null,null,null,null,null,null,null,null,null,null,null,null,null,null,null,null,null,null,null,null,null,null,null,null,null,null,null,null,null,{"$f":"CD13","v":0},null,null,null,null,null,null,null,null,null,null,null,null,null,null,null,null,null,null,null,null,null,null,null,null,null,null,null,null,null,null,null,null,null,null,null,null,null,null,null,null,null,null,null,null,null,null,null,null,null,null,null,null,null,null,null,null,null,null,null,null,null,null,null,null,null,null,null,null,null,null,null,null,null,null,null,null,null,null,null,null,{"$f":"IF(BW16=\"\",\"\",IF(BW16>CB16,1,0)+IF(CG16>CL16,1,0)+IF(CQ16>CV16,1,0)+IF(DA16>DF16,1,0)+IF(DK16>DP16,1,0))","v":""},null,null,null,null,{"$f":"IF(BW16=\"\",\"\",IF(BW16<CB16,1,0)+IF(CG16<CL16,1,0)+IF(CQ16<CV16,1,0)+IF(DA16<DF16,1,0)+IF(DK16<DP16,1,0))","v":""},null,null,null,null,{"$f":"IF(DU16=\"\",\"\",IF(DU16>DZ16,1,0))","v":""},null,null,null,{"$f":"IF(DU16=\"\",\"\",IF(DU16<DZ16,1,0))","v":""},null,null,null,{"$f":"M15","v":"Heimverein ( Mannschaft A )"}]
[null,null,"A1 - B1",null,null,null,null,null,null,null,null,null,{"$f":"AQ13","v":0},null,null,null,null,null,null,null,null,null,null,null,null,null,null,null,null,null,null,null,null,null,null,null,null,null,null,null,null,null,null,{"$f":"DJ13","v":0},null,null,null,null,null,null,null,null,null,null,null,null,null,null,null,null,null,null,null,null,null,null,null,null,null,null,null,null,null,null,null,null,null,null,null,null,null,null,null,null,null,null,null,null,null,null,null,null,null,null,null,null,null,null,null,null,null,null,null,null,null,null,null,null,null,null,null,null,null,null,null,null,null,null,null,null,null,null,null,null,null,null,null,null,null,null,null,null,null,null,null,null,null,null,null,null,null,null,{"$f":"SUM(BW16:CA26)","v":0}]
[null,null,"E",null,null,"A3-B3",null,null,null,null,null,null,{"$f":"K11","v":0},null,null,null,null,null,null,null,null,null,null,null,null,null,null,null,null,null,null,null,null,null,null,null,null,null,null,null,null,null,null,{"$f":"CD11","v":0},null,null,null,null,null,null,null,null,null,null,null,null,null,null,null,null,null,null,null,null,null,null,null,null,null,null,null,null,null,null,null,null,null,null,null,null,null,null,null,null,null,null,null,null,null,null,null,null,null,null,null,null,null,null,null,null,null,null,null,null,null,null,null,null,null,null,null,null,null,null,null,null,null,null,null,null,null,null,null,null,{"$f":"IF(BW18=\"\",\"\",IF(BW18>CB18,1,0)+IF(CG18>CL18,1,0)+IF(CQ18>CV18,1,0)+IF(DA18>DF18,1,0)+IF(DK18>DP18,1,0))","v":""},null,null,null,null,{"$f":"IF(BW18=\"\",\"\",IF(BW18<CB18,1,0)+IF(CG18<CL18,1,0)+IF(CQ18<CV18,1,0)+IF(DA18<DF18,1,0)+IF(DK18<DP18,1,0))","v":""},null,null,null,null,{"$f":"IF(DU18=\"\",\"\",IF(DU18>DZ18,1,0))","v":""},null,null,null,{"$f":"IF(DU18=\"\",\"\",IF(DU18<DZ18,1,0))","v":""},null,null,null,{"$f":"SUM(CG16:CK26)","v":0}]
[null,null,"E",null,null,"A1-B2",null,null,null,null,null,null,{"$f":"K9","v":0},null,null,null,null,null,null,null,null,null,null,null,null,null,null,null,null,null,null,null,null,null,null,null,null,null,null,null,null,null,null,{"$f":"CD10","v":0},null,null,null,null,null,null,null,null,null,null,null,null,null,null,null,null,null,null,null,null,null,null,null,null,null,null,null,null,null,null,null,null,null,null,null,null,null,null,null,null,null,null,null,null,null,null,null,null,null,null,null,null,null,null,null,null,null,null,null,null,null,null,null,null,null,null,null,null,null,null,null,null,null,null,null,null,null,null,null,null,"",null,null,null,null,"",null,null,null,null,"",null,null,null,"",null,null,null,{"$f":"SUM(CQ16:CU26)","v":0}]
[null,null,"E",null,null,"A2-B1",null,null,null,null,null,null,{"$f":"K10","v":0},null,null,null,null,null,null,null,null,null,null,null,null,null,null,null,null,null,null,null,null,null,null,null,null,null,null,null,null,null,null,{"$f":"CD9","v":0},null,null,null,null,null,null,null,null,null,null,null,null,null,null,null,null,null,null,null,null,null,null,null,null,null,null,null,null,null,null,null,null,null,null,null,null,null,null,null,null,null,null,null,null,null,null,null,null,null,null,null,null,null,null,null,null,null,null,null,null,null,null,null,null,null,null,null,null,null,null,null,null,null,null,null,null,null,null,null,null,"",null,null,null,null,"",null,null,null,null,"",null,null,null,"",null,null,null,{"$f":"SUM(DA16:DE26)","v":0}]
[null,null,"E",null,null,"A4-B2",null,null,null,null,null,null,{"$f":"K12","v":0},null,null,null,null,null,null,null,null,null,null,null,null,null,null,null,null,null,null,null,null,null,null,null,null,null,null,null,null,null,null,{"$f":"CD10","v":0},null,null,null,null,null,null,null,null,null,null,null,null,null,null,null,null,null,null,null,null,null,null,null,null,null,null,null,null,null,null,null,null,null,null,null,null,null,null,null,null,null,null,null,null,null,null,null,null,null,null,null,null,null,null,null,null,null,null,null,null,null,null,null,null,null,null,null,null,null,null,null,null,null,null,null,null,null,null,null,null,"",null,null,null,null,"",null,null,null,null,"",null,null,null,"",null,null,null,{"$f":"SUM(DK16:DO26)","v":0}]
[null,null,"E",null,null,"A1-B1",null,null,null,null,null,null,{"$f":"K9","v":0},null,null,null,null,null,null,null,null,null,null,null,null,null,null,null,null,null,null,null,null,null,null,null,null,null,null,null,null,null,null,{"$f":"CD9","v":0},null,null,null,null,null,null,null,null,null,null,null,null,null,null,null,null,null,null,null,null,null,null,null,null,null,null,null,null,null,null,null,null,null,null,null,null,null,null,null,null,null,null,null,null,null,null,null,null,null,null,null,null,null,null,null,null,null,null,null,null,null,null,null,null,null,null,null,null,null,null,null,null,null,null,null,null,null,null,null,null,"",null,null,null,null,"",null,null,null,null,"",null,null,null,"",null,null,null,{"$f":"SUM(EM17:EM21)","v":0}]
[null,null,"E",null,null,"A4-B3",null,null,null,null,null,null,{"$f":"K12","v":0},null,null,null,null,null,null,null,null,null,null,null,null,null,null,null,null,null,null,null,null,null,null,null,null,null,null,null,null,null,null,{"$f":"CD11","v":0},null,null,null,null,null,null,null,null,null,null,null,null,null,null,null,null,null,null,null,null,null,null,null,null,null,null,null,null,null,null,null,null,null,null,null,null,null,null,null,null,null,null,null,null,null,null,null,null,null,null,null,null,null,null,null,null,null,null,null,null,null,null,null,null,null,null,null,null,null,null,null,null,null,null,null,null,null,null,null,null,"",null,null,null,null,"",null,null,null,null,"",null,null,null,"",null,null,null,{"$f":"AR15","v":"Gastverein ( Mannschaft B )"}]
[null,null,"E",null,null,"A2-B2",null,null,null,null,null,null,{"$f":"K10","v":0},null,null,null,null,null,null,null,null,null,null,null,null,null,null,null,null,null,null,null,null,null,null,null,null,null,null,null,null,null,null,{"$f":"CD10","v":0},null,null,null,null,null,null,null,null,null,null,null,null,null,null,null,null,null,null,null,null,null,null,null,null,null,null,null,null,null,null,null,null,null,null,null,null,null,null,null,null,null,null,null,null,null,null,null,null,null,null,null,null,null,null,null,null,null,null,null,null,null,null,null,null,null,null,null,null,null,null,null,null,null,null,null,null,null,null,null,null,"",null,null,null,null,"",null,null,null,null,"",null,null,null,"",null,null,null,{"$f":"SUM(CB16:CF26)","v":0}]
[null,null,"E",null,null,"A1-B3",null,null,null,null,null,null,{"$f":"K9","v":0},null,null,null,null,null,null,null,null,null,null,null,null,null,null,null,null,null,null,null,null,null,null,null,null,null,null,null,null,null,null,{"$f":"CD11","v":0},null,null,null,null,null,null,null,null,null,null,null,null,null,null,null,null,null,null,null,null,null,null,null,null,null,null,null,null,null,null,null,null,null,null,null,null,null,null,null,null,null,null,null,null,null,null,null,null,null,null,null,null,null,null,null,null,null,null,null,null,null,null,null,null,null,null,null,null,null,null,null,null,null,null,null,null,null,null,null,null,"",null,null,null,null,"",null,null,null,null,"",null,null,null,"",null,null,null,{"$f":"SUM(CL16:CP26)","v":0}]
[null,null,"E",null,null,"A3-B1",null,null,null,null,null,null,{"$f":"K11","v":0},null,null,null,null,null,null,null,null,null,null,null,null,null,null,null,null,null,null,null,null,null,null,null,null,null,null,null,null,null,null,{"$f":"CD9","v":0},null,null,null,null,null,null,null,null,null,null,null,null,null,null,null,null,null,null,null,null,null,null,null,null,null,null,null,null,null,null,null,null,null,null,null,null,null,null,null,null,null,null,null,null,null,null,null,null,null,null,null,null,null,null,null,null,null,null,null,null,null,null,null,null,null,null,null,null,null,null,null,null,null,null,null,null,null,null,null,null,"",null,null,null,null,"",null,null,null,null,"",null,null,null,"",null,null,null,{"$f":"SUM(CV16:CZ26)","v":0}]
[null,null,null,null,null,null,null,null,null,null,null,null,null,null,null,null,null,null,null,null,null,null,null,null,null,null,null,null,null,null,null,null,null,null,null,null,null,null,null,null,null,null,null,null,null,null,null,null,null,null,null,null,null,null,null,null,null,null,null,null,null,null,null,null,null,null,null,null,null,null,null,null,null,null,null,null,null,null,null,null,null,null,null,null,null,null,null,null,null,null,null,null,null,null,null,null,null,null,null,null,null,null,null,null,null,null,null,null,null,null,null,null,null,null,null,null,null,null,null,null,null,null,null,null,{"$f":"IF(DU16=\"\",\"\",SUM(DU16:DY26))","v":""},null,null,null,null,{"$f":"IF(DZ16=\"\",\"\",SUM(DZ16:ED26))","v":""},null,null,null,null,{"$f":"IF(EE16=\"\",\"\",SUM(EE16:EH26))","v":""},null,null,null,{"$f":"IF(EI16=\"\",\"\",SUM(EI16:EL26))","v":""},null,null,null,{"$f":"SUM(DF16:DJ26)","v":0}]
[null,null,"Spielbeginn :",null,null,null,null,null,null,null,null,null,null,null,null,null,{"$f":"'4g4'!Q30","v":"00:00:00"},null,null,null,null,null,null,null,null,null,null,"Uhr",null,null,null,null,null,null,null,null,null,"Spielende :",null,null,null,null,null,null,null,null,null,null,null,null,null,null,null,null,null,null,null,null,null,null,null,null,"Uhr",null,null,null,null,null,null,null,null,null,null,null,null,null,null,null,null,null,null,null,null,null,{"$f":"EM22","v":0},null,null,null,null,null,":",null,{"$f":"EM31","v":0},null,null,null,null,null," Bälle",null,null,null,null,null,null,null,null,null,null,null,null,null,null,null,null,null,null,null,null,null,null,null,null,null,null,null,null,null,null,null,null,null,null,null,null,null,null,null,null,null,null,null,{"$f":"SUM(DP16:DT26)","v":0}]
[]
[]
[null,null,{"$f":"IF(BI31=BO31,\"\",IF(BI31>BO31,EM10,EM12))","v":""},null,null,null,null,null,null,null,null,null,null,":",null,{"$f":"EM9","v":""},null,null,null,null,null,null,null,null,null,null,null,null,null,null,null,null,null,null,null,null,null,null,null,null,null,null,null,null,null,null,null,null,null,null,null,null,"mit :",null,null,null,null,null,null,null,{"$f":"IF(EE27>EI27,EE27,EI27)","v":""},null,null,null,":",null,{"$f":"IF(EE27<EI27,EE27,EI27)","v":""},null,null,null,"Spielen",null,null,null,null,null,null,null,null,null,null,null,null,"und",null,null,null,null,null,null,{"$f":"IF(EE27>=EI27,DU27,DZ27)","v":""},null,null,null,null,":",null,{"$f":"IF(EE27<EI27,DU27,DZ27)","v":""},null,null,null,null,"Sätzen",null,null,null,null,null,null,null,null,null,null,"und",null,null,null,null,null,null,{"$f":"IF(EE27>=EI27,EM22,EM31)","v":0},null,null,null,null,null,":",null,{"$f":"IF(EE27<EI27,EM22,EM31)","v":0},null,null,null,null,null," Bälle",null,null,null,null,null,null,null,{"$f":"SUM(EM24:EM28)","v":0}]
[]
[null,null,"Spielort ",null,null,null,null,null,null,null,null,":",null,{"$f":"'4g4'!N35","v":0},null,null,null,null,null,null,null,null,null,null,null,null,null,null,null,null,null,null,null,null,null,null,null,null,null,null,null,null,null,null,null,null,null,null,null,null,null,null,null,null,{"$f":"C4","v":0},null,null,null,null,null,null,null,null,null,null,null,null,null,null,null,null,null,null,null,null,null,null,null,null,"Unterschriften Mannschaftsführer",null,null,null,null,null,null,null,null,null,null,null,null,null,null,null,null,null,null,null,null,null,null,null,null,null,null,null,null,null,null,null,null,null,null,null,null,null,{"$f":"BQ4","v":0}]
[]
[null,null,"Datum",null,null,null,null,null,null,null,null,":",null,{"$f":"TODAY()","v":"2016-06-08"}]
[null,null,null,null,null,null," kein Protest"]
[null,null,"X"]
[null,null,null,null,null,null,"Protest - siehe Anlage"]
[null,null,null,null,null,null,null,null,null,null,null,null,null,null,null,null,null,null,null,null,null,null,null,null,null,null,null,null,null,null,null,null,null,null,null,null,null,null,null,null,null,null,null,null,null,null,null,null,null,null,null,null,null,null,"Mf :",null,null,null,null,{"$f":"'4g4'!BH41","v":0},null,null,null,null,null,null,null,null,null,null,null,null,null,null,null,null,null,null,null,null,null,null,null,null,null,null,null,null,null,null,null,null,null,null,null,null,null,null,null,null,"Mf :"]
[]
[]
[null,null,"Spielleiter 4. KL. Mi.",null,null,null,null,null,null,null,null,null,null,null,null,null,null,null,null,null,":",null,{"$f":"'4g4'!W44","v":"Matthias Höger - Erlenweg 8, 86697 Unterhausen"},null,null,null,null,null,null,null,null,null,null,null,null,null,null,null,null,null,null,null,null,null,null,null,null,null,null,null,null,null,null,null,null,null,null,null,null,null,null,null,null,null,null,null,null,null,null,null,null,null,null,null,null,null,null,null,null,{"$f":"'4g4'!CB44","v":"0176 - 465 777 99"},null,null,null,null,null,null,null,null,null,null,null,null,null,null,null,null,null,null,null,null,{"$f":"'4g4'!CW44","v":"matthias.hoeger@ttkreis-bayreuth.de"}]
[null,null," Mannschaftsführer",null,null,null,null,null,null,null,null,null,null,null,null,null,null,null,null,null,":",null,{"$f":"'4g4'!W45","v":0},null,null,null,null,null,null,null,null,null,null,null,null,null,null,null,null,null,null,null,null,null,null,null,null,null,null,null,null,null,null,null,null,null,null,null,null,null,null,null,null,null,null,null,null,null,null,null,null,null,null,null,null,null,null,null,null,{"$f":"'4g4'!CB45","v":0},null,null,null,null,null,null,null,null,null,null,null,null,null,null,null,null,null,null,null,null,{"$f":"'4g4'!CW45","v":0}]

{"sheet":"3g4","index":3,"n_rows":43,"n_cols":143,"rows_kept":43,"cut":false,"hidden":false,"merged":[[0,143,44,144],[1,2,1,141],[2,2,2,16],[2,17,2,18],[2,19,2,33],[2,34,2,35],[2,36,2,62],[2,63,2,64],[2,65,2,93],[2,94,2,101],[2,102,2,120],[2,122,2,130],[2,131,2,132],[2,133,2,141],[3,2,3,56],[3,57,3,67],[3,68,3,122],[3,123,4,127],[3,128,3,133],[3,134,3,135],[3,136,3,141],[4,2,4,41],[4,42,4,49],[4,50,4,56],[4,57,5,67],[4,68,4,75],[4,76,4,82],[4,83,4,122],[4,128,4,141],[5,2,5,41],[5,42,5,56],[5,68,5,82],[5,83,5,141],[6,2,6,141],[7,2,7,9],[7,10,7,62],[7,63,7,70],[7,71,12,72],[7,73,7,80],[7,81,7,133],[7,134,7,141],[8,2,10,5],[8,6,8,9],[8,10,8,62],[8,63,8,70],[8,73,11,76],[8,77,8,80],[8,81,8,133],[8,134,8,141],[9,6,9,9],[9,10,9,62],[9,63,9,70],[9,77,9,80],[9,81,9,133],[9,134,9,141],[10,6,10,9],[10,10,10,62],[10,63,10,70],[10,77,10,80],[10,81,10,133],[12,73,12,76],[12,77,12,80],[12,81,12,109],[12,110,12,112],[12,113,12,141],[13,2,13,141],[10,134,10,141],[11,2,11,70],[11,77,11,80],[11,81,11,133],[11,134,11,141],[12,2,12,5],[12,6,12,9],[12,10,12,38],[12,39,12,41],[12,42,12,70],[14,104,14,113],[14,114,14,123],[15,119,16,123],[14,124,14,133],[14,134,14,141],[15,2,15,11],[15,12,15,42],[15,43,15,73],[15,74,16,78],[15,79,16,83],[15,84,16,88],[14,2,14,11],[14,12,14,42],[14,43,14,73],[14,74,14,83],[14,84,14,93],[14,94,14,103],[15,138,16,141],[16,2,16,11],[16,12,16,42],[16,43,16,73],[15,89,16,93],[15,94,16,98],[15,99,16,103],[15,104,16,108],[15,109,16,113],[15,114,16,118],[17,2,17,4],[17,5,17,11],[17,12,17,42],[17,43,17,73],[17,74,17,78],[17,79,17,83],[17,84,17,88],[17,89,17,93],[17,94,17,98],[17,99,17,103],[17,104,17,108],[17,109,17,113],[15,124,16,128],[15,129,16,133],[15,134,16,137],[17,114,17,118],[17,119,17,123],[17,124,17,128],[17,129,17,133],[17,134,17,137],[17,138,17,141],[18,129,18,133],[18,134,18,137],[18,138,18,141],[18,84,18,88],[18,89,18,93],[18,94,18,98],[18,99,18,103],[18,104,18,108],[18,109,18,113],[19,2,19,4],[19,5,19,11],[19,12,19,42],[19,43,19,73],[19,74,19,78],[19,79,19,83],[18,114,18,118],[18,119,18,123],[18,124,18,128],[18,2,18,4],[18,5,18,11],[18,12,18,42],[18,43,18,73],[18,74,18,78],[18,79,18,83],[19,114,19,118],[19,119,19,123],[19,124,19,128],[19,129,19,133],[19,134,19,137],[19,138,19,141],[19,84,19,88],[19,89,19,93],[19,94,19,98],[19,99,19,103],[19,104,19,108],[19,109,19,113],[20,129,20,133],[20,134,20,137],[20,138,20,141],[20,84,20,88],[20,89,20,93],[20,94,20,98],[20,99,20,103],[20,104,20,108],[20,109,20,113],[21,2,21,4],[21,5,21,11],[21,12,21,42],[21,43,21,73],[21,74,21,78],[21,79,21,83],[20,114,20,118],[20,119,20,123],[20,124,20,128],[20,2,20,4],[20,5,20,11],[20,12,20,42],[20,43,20,73],[20,74,20,78],[20,79,20,83],[21,114,21,118],[21,119,21,123],[21,124,21,128],[21,129,21,133],[21,134,21,137],[21,138,21,141],[21,84,21,88],[21,89,21,93],[21,94,21,98],[21,99,21,103],[21,104,21,108],[21,109,21,113],[22,129,22,133],[22,134,22,137],[22,138,22,141],[22,84,22,88],[22,89,22,93],[22,94,22,98],[22,99,22,103],[22,104,22,108],[22,109,22,113],[23,2,23,4],[23,5,23,11],[23,12,23,42],[23,43,23,73],[23,74,23,78],[23,79,23,83],[22,114,22,118],[22,119,22,123],[22,124,22,128],[22,2,22,4],[22,5,22,11],[22,12,22,42],[22,43,22,73],[22,74,22,78],[22,79,22,83],[23,114,23,118],[23,119,23,123],[23,124,23,128],[23,129,23,133],[23,134,23,137],[23,138,23,141],[23,84,23,88],[23,89,23,93],[23,94,23,98],[23,99,23,103],[23,104,23,108],[23,109,23,113],[24,129,24,133],[24,134,24,137],[24,138,24,141],[24,84,24,88],[24,89,24,93],[24,94,24,98],[24,99,24,103],[24,104,24,108],[24,109,24,113],[25,2,25,4],[25,5,25,11],[25,12,25,42],[25,43,25,73],[25,74,25,78],[25,79,25,83],[24,114,24,118],[24,119,24,123],[24,124,24,128],[24,2,24,4],[24,5,24,11],[24,12,24,42],[24,43,24,73],[24,74,24,78],[24,79,24,83],[25,114,25,118],[25,119,25,123],[25,124,25,128],[25,129,25,133],[25,134,25,137],[25,138,25,141],[25,84,25,88],[25,89,25,93],[25,94,25,98],[25,99,25,103],[25,104,25,108],[25,109,25,113],[27,62,27,83],[27,84,27,89],[27,90,27,91],[27,92,27,97],[27,98,27,123],[28,2,28,141],[26,2,26,123],[26,124,27,128],[26,129,27,133],[26,134,27,137],[26,138,27,141],[27,2,27,15],[27,16,27,26],[27,27,27,36],[27,37,27,50],[27,51,27,61],[29,2,29,141],[30,2,30,12],[30,13,30,14],[30,15,30,51],[30,52,30,59],[30,60,30,63],[30,64,30,65],[30,66,30,69],[30,70,30,82],[30,83,30,89],[30,126,30,127],[30,128,30,133],[30,134,30,141],[31,2,31,141],[32,2,33,10],[32,11,33,12],[32,13,33,43],[32,44,39,48],[32,49,39,53],[32,54,32,78],[30,90,30,94],[30,95,30,96],[30,97,30,101],[30,102,30,112],[30,113,30,119],[30,120,30,125],[32,79,32,116],[32,117,32,141],[33,54,37,95],[33,96,38,99],[33,100,37,141],[34,2,34,10],[34,11,34,12],[34,13,34,43],[35,2,35,5],[35,6,36,43],[42,2,42,19],[42,20,42,21],[42,22,42,78],[42,79,42,99],[42,100,42,141],[43,0,44,141],[0,0,42,1],[0,2,0,141],[38,100,38,104],[38,105,38,141],[39,2,39,42],[39,54,39,141],[40,2,40,141],[41,2,41,19],[41,20,41,21],[41,22,41,78],[41,79,41,99],[41,100,41,141],[36,2,36,5],[37,2,37,5],[37,6,38,43],[38,2,38,5],[38,54,38,58],[38,59,38,95]]}
[null,null,"\"Braunschweiger System\"   -   3 gegen 4"]
[null,null,{"$f":"'4g4'!C2","v":"TT-Kreis Bayreuth"}]
[null,null,{"$f":"'4g4'!C3","v":"Herren"},null,null,null,null,null,null,null,null,null,null,null,null,null,null,"-",null,"Verbands",null,null,null,null,null,null,null,null,null,null,null,null,null,null,"-",null,"Mannschaftsspiel",null,null,null,null,null,null,null,null,null,null,null,null,null,null,null,null,null,null,null,null,null,null,null,null,null,null,"-",null,{"$f":"'4g4'!BN3","v":"4. Kreisliga Mitte"},null,null,null,null,null,null,null,null,null,null,null,null,null,null,null,null,null,null,null,null,null,null,null,null,null,null,null,null,null,null,null,null,null,null,null,null,{"$f":"'4g4'!CY3","v":"Vorrunde"},null,null,null,null,null,null,null,null,null,null,null,null,null,null,null,null,null,null,null,{"$f":"'4g4'!DS3","v":2016},null,null,null,null,null,null,null,null,"/",null,{"$f":"DS3+1","v":2017},null,null,null,null,null,null,null,null,{"$f":"IF(EE27=EI27,\"\",IF(EE27>EI27,C4,BQ4))","v":""}]
[null,null,{"$f":"'4g4'!C4","v":0},null,null,null,null,null,null,null,null,null,null,null,null,null,null,null,null,null,null,null,null,null,null,null,null,null,null,null,null,null,null,null,null,null,null,null,null,null,null,null,null,null,null,null,null,null,null,null,null,null,null,null,null,null,null,"gegen",null,null,null,null,null,null,null,null,null,null,null,null,null,null,null,null,null,null,null,null,null,null,null,null,null,null,null,null,null,null,null,null,null,null,null,null,null,null,null,null,null,null,null,null,null,null,null,null,null,null,null,null,null,null,null,null,null,null,null,null,null,null,null,null,null,null,null,null,null,null,{"$f":"EE27","v":""},null,null,null,null,null,":",null,{"$f":"EI27","v":""},null,null,null,null,null,{"$f":"IF(BI31=\"\",\"\",IF(EE27=EI27,EM11))","v":""}]
[null,null,"Heimmannschaft  ( A )",null,null,null,null,null,null,null,null,null,null,null,null,null,null,null,null,null,null,null,null,null,null,null,null,null,null,null,null,null,null,null,null,null,null,null,null,null,null,null,{"$f":"'4g4'!AQ5","v":508},null,null,null,null,null,null,null,{"$f":"'4g4'!AY5","v":0},null,null,null,null,null,null,null,null,null,null,null,null,null,null,null,null,null,{"$f":"AQ5","v":508},null,null,null,null,null,null,null,null,null,null,null,null,null,null,"Gastmannschaft  ( B )",null,null,null,null,null,null,null,null,null,null,null,null,null,null,null,null,null,null,null,null,null,null,null,null,null,null,null,null,null,null,null,null,null,null,null,null,null,null,null,null,null,null,null,null,"Endergebnis"]
[null,null,null,null,null,null,null,null,null,null,null,null,null,null,null,null,null,null,null,null,null,null,null,null,null,null,null,null,null,null,null,null,null,null,null,null,null,null,null,null,null,null,"Vereins-Nr.",null,null,null,null,null,null,null,null,null,null,null,null,null,null,null,null,null,null,null,null,null,null,null,null,null,"Vereins-Nr."]
[null,null,"Mannschaftsaufstellung"]
[null,null,"Rang",null,null,null,null,null,null,null,"Heimverein ( Mannschaft A )",null,null,null,null,null,null,null,null,null,null,null,null,null,null,null,null,null,null,null,null,null,null,null,null,null,null,null,null,null,null,null,null,null,null,null,null,null,null,null,null,null,null,null,null,null,null,null,null,null,null,null,null,"Pos.",null,null,null,null,null,null,null,null,null,"Rang",null,null,null,null,null,null,null,"Gastverein ( Mannschaft B )",null,null,null,null,null,null,null,null,null,null,null,null,null,null,null,null,null,null,null,null,null,null,null,null,null,null,null,null,null,null,null,null,null,null,null,null,null,null,null,null,null,null,null,null,null,null,null,null,null,null,null,null,"Pos."]
[null,null,"E I N Z E L",null,null,null,"A1",null,null,null,null,null,null,null,null,null,null,null,null,null,null,null,null,null,null,null,null,null,null,null,null,null,null,null,null,null,null,null,null,null,null,null,null,null,null,null,null,null,null,null,null,null,null,null,null,null,null,null,null,null,null,null,null,null,null,null,null,null,null,null,null,null,null,"E I N Z E L",null,null,null,"B1",null,null,null,null,null,null,null,null,null,null,null,null,null,null,null,null,null,null,null,null,null,null,null,null,null,null,null,null,null,null,null,null,null,null,null,null,null,null,null,null,null,null,null,null,null,null,null,null,null,null,null,null,null,null,null,null,null,null,null,null,null,null,null,null,{"$f":"IF(EE27<>EI27,EM3,EM4)","v":""}]
[null,null,null,null,null,null,"A2",null,null,null,null,null,null,null,null,null,null,null,null,null,null,null,null,null,null,null,null,null,null,null,null,null,null,null,null,null,null,null,null,null,null,null,null,null,null,null,null,null,null,null,null,null,null,null,null,null,null,null,null,null,null,null,null,null,null,null,null,null,null,null,null,null,null,null,null,null,null,"B2",null,null,null,null,null,null,null,null,null,null,null,null,null,null,null,null,null,null,null,null,null,null,null,null,null,null,null,null,null,null,null,null,null,null,null,null,null,null,null,null,null,null,null,null,null,null,null,null,null,null,null,null,null,null,null,null,null,null,null,null,null,null,null,null,"Sieger"]
[null,null,null,null,null,null,"A3",null,null,null,null,null,null,null,null,null,null,null,null,null,null,null,null,null,null,null,null,null,null,null,null,null,null,null,null,null,null,null,null,null,null,null,null,null,null,null,null,null,null,null,null,null,null,null,null,null,null,null,null,null,null,null,null,null,null,null,null,null,null,null,null,null,null,null,null,null,null,"B3",null,null,null,null,null,null,null,null,null,null,null,null,null,null,null,null,null,null,null,null,null,null,null,null,null,null,null,null,null,null,null,null,null,null,null,null,null,null,null,null,null,null,null,null,null,null,null,null,null,null,null,null,null,null,null,null,null,null,null,null,null,null,null,null,"Unentschieden"]
[null,null,null,null,null,null,null,null,null,null,null,null,null,null,null,null,null,null,null,null,null,null,null,null,null,null,null,null,null,null,null,null,null,null,null,null,null,null,null,null,null,null,null,null,null,null,null,null,null,null,null,null,null,null,null,null,null,null,null,null,null,null,null,null,null,null,null,null,null,null,null,null,null,null,null,null,null,"B4"]
[null,null,"D",null,null,null,"A1",null,null,null,null,null,null,null,null,null,null,null,null,null,null,null,null,null,null,null,null,null,null,null,null,null,null,null,null,null,null,null,null,"/",null,null,null,null,null,null,null,null,null,null,null,null,null,null,null,null,null,null,null,null,null,null,null,null,null,null,null,null,null,null,null,null,null,"D",null,null,null,"B1",null,null,null,null,null,null,null,null,null,null,null,null,null,null,null,null,null,null,null,null,null,null,null,null,null,null,null,null,null,null,null,null,"/"]
[null,null,{"$f":"'4g4'!C15","v":"created by Gerhard Nidetzky"}]
[null,null,"Spielfolge",null,null,null,null,null,null,null,null,null,"Heimverein ( Mannschaft A )",null,null,null,null,null,null,null,null,null,null,null,null,null,null,null,null,null,null,null,null,null,null,null,null,null,null,null,null,null,null,"Gastverein ( Mannschaft B )",null,null,null,null,null,null,null,null,null,null,null,null,null,null,null,null,null,null,null,null,null,null,null,null,null,null,null,null,null,null,"1. Satz",null,null,null,null,null,null,null,null,null,"2. Satz",null,null,null,null,null,null,null,null,null,"3. Satz",null,null,null,null,null,null,null,null,null,"4. Satz",null,null,null,null,null,null,null,null,null,"5. Satz",null,null,null,null,null,null,null,null,null,"Sätze",null,null,null,null,null,null,null,null,null,"Spiele"]
[null,null,"Doppel",null,null,null,null,null,null,null,null,null,{"$f":"K13","v":0},null,null,null,null,null,null,null,null,null,null,null,null,null,null,null,null,null,null,null,null,null,null,null,null,null,null,null,null,null,null,{"$f":"CD13","v":0},null,null,null,null,null,null,null,null,null,null,null,null,null,null,null,null,null,null,null,null,null,null,null,null,null,null,null,null,null,null,null,null,null,null,null,null,null,null,null,null,null,null,null,null,null,null,null,null,null,null,null,null,null,null,null,null,null,null,null,null,null,null,null,null,null,null,null,null,null,null,null,null,null,null,null,null,null,null,null,null,{"$f":"IF(BW16=\"\",\"\",IF(BW16>CB16,1,0)+IF(CG16>CL16,1,0)+IF(CQ16>CV16,1,0)+IF(DA16>DF16,1,0)+IF(DK16>DP16,1,0))","v":""},null,null,null,null,{"$f":"IF(BW16=\"\",\"\",IF(BW16<CB16,1,0)+IF(CG16<CL16,1,0)+IF(CQ16<CV16,1,0)+IF(DA16<DF16,1,0)+IF(DK16<DP16,1,0))","v":""},null,null,null,null,{"$f":"IF(DU16=\"\",\"\",IF(DU16>DZ16,1,0))","v":""},null,null,null,{"$f":"IF(DU16=\"\",\"\",IF(DU16<DZ16,1,0))","v":""},null,null,null,{"$f":"M15","v":"Heimverein ( Mannschaft A )"}]
[null,null,"A1 - B1",null,null,null,null,null,null,null,null,null,{"$f":"AQ13","v":0},null,null,null,null,null,null,null,null,null,null,null,null,null,null,null,null,null,null,null,null,null,null,null,null,null,null,null,null,null,null,{"$f":"DJ13","v":0},null,null,null,null,null,null,null,null,null,null,null,null,null,null,null,null,null,null,null,null,null,null,null,null,null,null,null,null,null,null,null,null,null,null,null,null,null,null,null,null,null,null,null,null,null,null,null,null,null,null,null,null,null,null,null,null,null,null,null,null,null,null,null,null,null,null,null,null,null,null,null,null,null,null,null,null,null,null,null,null,null,null,null,null,null,null,null,null,null,null,null,null,null,null,null,null,null,null,{"$f":"SUM(BW16:CA26)","v":0}]
[null,null,"E",null,null,"A3-B3",null,null,null,null,null,null,{"$f":"K11","v":0},null,null,null,null,null,null,null,null,null,null,null,null,null,null,null,null,null,null,null,null,null,null,null,null,null,null,null,null,null,null,{"$f":"CD11","v":0},null,null,null,null,null,null,null,null,null,null,null,null,null,null,null,null,null,null,null,null,null,null,null,null,null,null,null,null,null,null,null,null,null,null,null,null,null,null,null,null,null,null,null,null,null,null,null,null,null,null,null,null,null,null,null,null,null,null,null,null,null,null,null,null,null,null,null,null,null,null,null,null,null,null,null,null,null,null,null,null,{"$f":"IF(BW18=\"\",\"\",IF(BW18>CB18,1,0)+IF(CG18>CL18,1,0)+IF(CQ18>CV18,1,0)+IF(DA18>DF18,1,0)+IF(DK18>DP18,1,0))","v":""},null,null,null,null,{"$f":"IF(BW18=\"\",\"\",IF(BW18<CB18,1,0)+IF(CG18<CL18,1,0)+IF(CQ18<CV18,1,0)+IF(DA18<DF18,1,0)+IF(DK18<DP18,1,0))","v":""},null,null,null,null,{"$f":"IF(DU18=\"\",\"\",IF(DU18>DZ18,1,0))","v":""},null,null,null,{"$f":"IF(DU18=\"\",\"\",IF(DU18<DZ18,1,0))","v":""},null,null,null,{"$f":"SUM(CG16:CK26)","v":0}]
[null,null,"E",null,null,"A2-B1",null,null,null,null,null,null,{"$f":"K10","v":0},null,null,null,null,null,null,null,null,null,null,null,null,null,null,null,null,null,null,null,null,null,null,null,null,null,null,null,null,null,null,{"$f":"CD9","v":0},null,null,null,null,null,null,null,null,null,null,null,null,null,null,null,null,null,null,null,null,null,null,null,null,null,null,null,null,null,null,null,null,null,null,null,null,null,null,null,null,null,null,null,null,null,null,null,null,null,null,null,null,null,null,null,null,null,null,null,null,null,null,null,null,null,null,null,null,null,null,null,null,null,null,null,null,null,null,null,null,"",null,null,null,null,"",null,null,null,null,"",null,null,null,"",null,null,null,{"$f":"SUM(CQ16:CU26)","v":0}]
[null,null,"E",null,null,"A1-B2",null,null,null,null,null,null,{"$f":"K9","v":0},null,null,null,null,null,null,null,null,null,null,null,null,null,null,null,null,null,null,null,null,null,null,null,null,null,null,null,null,null,null,{"$f":"CD10","v":0},null,null,null,null,null,null,null,null,null,null,null,null,null,null,null,null,null,null,null,null,null,null,null,null,null,null,null,null,null,null,null,null,null,null,null,null,null,null,null,null,null,null,null,null,null,null,null,null,null,null,null,null,null,null,null,null,null,null,null,null,null,null,null,null,null,null,null,null,null,null,null,null,null,null,null,null,null,null,null,null,"",null,null,null,null,"",null,null,null,null,"",null,null,null,"",null,null,null,{"$f":"SUM(DA16:DE26)","v":0}]
[null,null,"E",null,null,"A2-B4",null,null,null,null,null,null,{"$f":"K10","v":0},null,null,null,null,null,null,null,null,null,null,null,null,null,null,null,null,null,null,null,null,null,null,null,null,null,null,null,null,null,null,{"$f":"CD12","v":0},null,null,null,null,null,null,null,null,null,null,null,null,null,null,null,null,null,null,null,null,null,null,null,null,null,null,null,null,null,null,null,null,null,null,null,null,null,null,null,null,null,null,null,null,null,null,null,null,null,null,null,null,null,null,null,null,null,null,null,null,null,null,null,null,null,null,null,null,null,null,null,null,null,null,null,null,null,null,null,null,"",null,null,null,null,"",null,null,null,null,"",null,null,null,"",null,null,null,{"$f":"SUM(DK16:DO26)","v":0}]
[null,null,"E",null,null,"A1-B1",null,null,null,null,null,null,{"$f":"K9","v":0},null,null,null,null,null,null,null,null,null,null,null,null,null,null,null,null,null,null,null,null,null,null,null,null,null,null,null,null,null,null,{"$f":"CD9","v":0},null,null,null,null,null,null,null,null,null,null,null,null,null,null,null,null,null,null,null,null,null,null,null,null,null,null,null,null,null,null,null,null,null,null,null,null,null,null,null,null,null,null,null,null,null,null,null,null,null,null,null,null,null,null,null,null,null,null,null,null,null,null,null,null,null,null,null,null,null,null,null,null,null,null,null,null,null,null,null,null,"",null,null,null,null,"",null,null,null,null,"",null,null,null,"",null,null,null,{"$f":"SUM(EM17:EM21)","v":0}]
[null,null,"E",null,null,"A3-B4",null,null,null,null,null,null,{"$f":"K11","v":0},null,null,null,null,null,null,null,null,null,null,null,null,null,null,null,null,null,null,null,null,null,null,null,null,null,null,null,null,null,null,{"$f":"CD12","v":0},null,null,null,null,null,null,null,null,null,null,null,null,null,null,null,null,null,null,null,null,null,null,null,null,null,null,null,null,null,null,null,null,null,null,null,null,null,null,null,null,null,null,null,null,null,null,null,null,null,null,null,null,null,null,null,null,null,null,null,null,null,null,null,null,null,null,null,null,null,null,null,null,null,null,null,null,null,null,null,null,"",null,null,null,null,"",null,null,null,null,"",null,null,null,"",null,null,null,{"$f":"AR15","v":"Gastverein ( Mannschaft B )"}]
[null,null,"E",null,null,"A2-B2",null,null,null,null,null,null,{"$f":"K10","v":0},null,null,null,null,null,null,null,null,null,null,null,null,null,null,null,null,null,null,null,null,null,null,null,null,null,null,null,null,null,null,{"$f":"CD10","v":0},null,null,null,null,null,null,null,null,null,null,null,null,null,null,null,null,null,null,null,null,null,null,null,null,null,null,null,null,null,null,null,null,null,null,null,null,null,null,null,null,null,null,null,null,null,null,null,null,null,null,null,null,null,null,null,null,null,null,null,null,null,null,null,null,null,null,null,null,null,null,null,null,null,null,null,null,null,null,null,null,"",null,null,null,null,"",null,null,null,null,"",null,null,null,"",null,null,null,{"$f":"SUM(CB16:CF26)","v":0}]
[null,null,"E",null,null,"A3-B1",null,null,null,null,null,null,{"$f":"K11","v":0},null,null,null,null,null,null,null,null,null,null,null,null,null,null,null,null,null,null,null,null,null,null,null,null,null,null,null,null,null,null,{"$f":"CD9","v":0},null,null,null,null,null,null,null,null,null,null,null,null,null,null,null,null,null,null,null,null,null,null,null,null,null,null,null,null,null,null,null,null,null,null,null,null,null,null,null,null,null,null,null,null,null,null,null,null,null,null,null,null,null,null,null,null,null,null,null,null,null,null,null,null,null,null,null,null,null,null,null,null,null,null,null,null,null,null,null,null,"",null,null,null,null,"",null,null,null,null,"",null,null,null,"",null,null,null,{"$f":"SUM(CL16:CP26)","v":0}]
[null,null,"E",null,null,"A1-B3",null,null,null,null,null,null,{"$f":"K9","v":0},null,null,null,null,null,null,null,null,null,null,null,null,null,null,null,null,null,null,null,null,null,null,null,null,null,null,null,null,null,null,{"$f":"CD11","v":0},null,null,null,null,null,null,null,null,null,null,null,null,null,null,null,null,null,null,null,null,null,null,null,null,null,null,null,null,null,null,null,null,null,null,null,null,null,null,null,null,null,null,null,null,null,null,null,null,null,null,null,null,null,null,null,null,null,null,null,null,null,null,null,null,null,null,null,null,null,null,null,null,null,null,null,null,null,null,null,null,"",null,null,null,null,"",null,null,null,null,"",null,null,null,"",null,null,null,{"$f":"SUM(CV16:CZ26)","v":0}]
[null,null,null,null,null,null,null,null,null,null,null,null,null,null,null,null,null,null,null,null,null,null,null,null,null,null,null,null,null,null,null,null,null,null,null,null,null,null,null,null,null,null,null,null,null,null,null,null,null,null,null,null,null,null,null,null,null,null,null,null,null,null,null,null,null,null,null,null,null,null,null,null,null,null,null,null,null,null,null,null,null,null,null,null,null,null,null,null,null,null,null,null,null,null,null,null,null,null,null,null,null,null,null,null,null,null,null,null,null,null,null,null,null,null,null,null,null,null,null,null,null,null,null,null,{"$f":"IF(DU16=\"\",\"\",SUM(DU16:DY26))","v":""},null,null,null,null,{"$f":"IF(DZ16=\"\",\"\",SUM(DZ16:ED26))","v":""},null,null,null,null,{"$f":"IF(EE16=\"\",\"\",SUM(EE16:EH26))","v":""},null,null,null,{"$f":"IF(EI16=\"\",\"\",SUM(EI16:EL26))","v":""},null,null,null,{"$f":"SUM(DF16:DJ26)","v":0}]
[null,null,"Spielbeginn :",null,null,null,null,null,null,null,null,null,null,null,null,null,{"$f":"'4g4'!Q30","v":"00:00:00"},null,null,null,null,null,null,null,null,null,null,"Uhr",null,null,null,null,null,null,null,null,null,"Spielende :",null,null,null,null,null,null,null,null,null,null,null,null,null,null,null,null,null,null,null,null,null,null,null,null,"Uhr",null,null,null,null,null,null,null,null,null,null,null,null,null,null,null,null,null,null,null,null,null,{"$f":"EM22","v":0},null,null,null,null,null,":",null,{"$f":"EM31","v":0},null,null,null,null,null," Bälle",null,null,null,null,null,null,null,null,null,null,null,null,null,null,null,null,null,null,null,null,null,null,null,null,null,null,null,null,null,null,null,null,null,null,null,null,null,null,null,null,null,null,null,{"$f":"SUM(DP16:DT26)","v":0}]
[]
[]
[null,null,{"$f":"IF(BI31=BO31,\"\",IF(BI31>BO31,EM10,EM12))","v":""},null,null,null,null,null,null,null,null,null,null,":",null,{"$f":"EM9","v":""},null,null,null,null,null,null,null,null,null,null,null,null,null,null,null,null,null,null,null,null,null,null,null,null,null,null,null,null,null,null,null,null,null,null,null,null,"mit :",null,null,null,null,null,null,null,{"$f":"IF(EE27>EI27,EE27,EI27)","v":""},null,null,null,":",null,{"$f":"IF(EE27<EI27,EE27,EI27)","v":""},null,null,null,"Spielen",null,null,null,null,null,null,null,null,null,null,null,null,"und",null,null,null,null,null,null,{"$f":"IF(EE27>=EI27,DU27,DZ27)","v":""},null,null,null,null,":",null,{"$f":"IF(EE27<EI27,DU27,DZ27)","v":""},null,null,null,null,"Sätzen",null,null,null,null,null,null,null,null,null,null,"und",null,null,null,null,null,null,{"$f":"IF(EE27>=EI27,EM22,EM31)","v":0},null,null,null,null,null,":",null,{"$f":"IF(EE27<EI27,EM22,EM31)","v":0},null,null,null,null,null," Bälle",null,null,null,null,null,null,null,{"$f":"SUM(EM24:EM28)","v":0}]
[]
[null,null,"Spielort ",null,null,null,null,null,null,null,null,":",null,{"$f":"'4g4'!N35","v":0},null,null,null,null,null,null,null,null,null,null,null,null,null,null,null,null,null,null,null,null,null,null,null,null,null,null,null,null,null,null,null,null,null,null,null,null,null,null,null,null,{"$f":"C4","v":0},null,null,null,null,null,null,null,null,null,null,null,null,null,null,null,null,null,null,null,null,null,null,null,null,"Unterschriften Mannschaftsführer",null,null,null,null,null,null,null,null,null,null,null,null,null,null,null,null,null,null,null,null,null,null,null,null,null,null,null,null,null,null,null,null,null,null,null,null,null,{"$f":"BQ4","v":0}]
[]
[null,null,"Datum",null,null,null,null,null,null,null,null,":",null,{"$f":"TODAY()","v":"2016-06-08"}]
[null,null,null,null,null,null," kein Protest"]
[null,null,"X"]
[null,null,null,null,null,null,"Protest - siehe Anlage"]
[null,null,null,null,null,null,null,null,null,null,null,null,null,null,null,null,null,null,null,null,null,null,null,null,null,null,null,null,null,null,null,null,null,null,null,null,null,null,null,null,null,null,null,null,null,null,null,null,null,null,null,null,null,null,"Mf :",null,null,null,null,{"$f":"'4g4'!BH41","v":0},null,null,null,null,null,null,null,null,null,null,null,null,null,null,null,null,null,null,null,null,null,null,null,null,null,null,null,null,null,null,null,null,null,null,null,null,null,null,null,null,"Mf :"]
[]
[]
[null,null,"Spielleiter 4. KL. Mi.",null,null,null,null,null,null,null,null,null,null,null,null,null,null,null,null,null,":",null,{"$f":"'4g4'!W44","v":"Matthias Höger - Erlenweg 8, 86697 Unterhausen"},null,null,null,null,null,null,null,null,null,null,null,null,null,null,null,null,null,null,null,null,null,null,null,null,null,null,null,null,null,null,null,null,null,null,null,null,null,null,null,null,null,null,null,null,null,null,null,null,null,null,null,null,null,null,null,null,{"$f":"'4g4'!CB44","v":"0176 - 465 777 99"},null,null,null,null,null,null,null,null,null,null,null,null,null,null,null,null,null,null,null,null,{"$f":"'4g4'!CW44","v":"matthias.hoeger@ttkreis-bayreuth.de"}]
[null,null," Mannschaftsführer",null,null,null,null,null,null,null,null,null,null,null,null,null,null,null,null,null,":",null,{"$f":"'4g4'!W45","v":0},null,null,null,null,null,null,null,null,null,null,null,null,null,null,null,null,null,null,null,null,null,null,null,null,null,null,null,null,null,null,null,null,null,null,null,null,null,null,null,null,null,null,null,null,null,null,null,null,null,null,null,null,null,null,null,null,{"$f":"'4g4'!CB45","v":0},null,null,null,null,null,null,null,null,null,null,null,null,null,null,null,null,null,null,null,null,{"$f":"'4g4'!CW45","v":0}]

{"sheet":"3g3","index":4,"n_rows":42,"n_cols":143,"rows_kept":42,"cut":false,"hidden":false,"merged":[[0,143,43,144],[1,2,1,141],[2,2,2,16],[2,17,2,18],[2,19,2,33],[2,34,2,35],[2,36,2,62],[2,63,2,64],[2,65,2,93],[2,94,2,101],[2,102,2,120],[2,122,2,130],[2,131,2,132],[2,133,2,141],[3,2,3,56],[3,57,3,67],[3,68,3,122],[3,123,4,127],[3,128,3,133],[3,134,3,135],[3,136,3,141],[4,2,4,41],[4,42,4,49],[4,50,4,56],[4,57,5,67],[4,68,4,75],[4,76,4,82],[4,83,4,122],[4,128,4,141],[5,2,5,41],[5,42,5,56],[5,68,5,82],[5,83,5,141],[6,2,6,141],[7,2,7,9],[7,10,7,62],[7,63,7,70],[7,71,11,72],[7,73,7,80],[7,81,7,133],[7,134,7,141],[8,2,10,5],[8,6,8,9],[8,10,8,62],[8,63,8,70],[8,73,10,76],[8,77,8,80],[8,81,8,133],[8,134,8,141],[9,6,9,9],[9,10,9,62],[9,63,9,70],[9,77,9,80],[9,81,9,133],[9,134,9,141],[10,6,10,9],[10,10,10,62],[10,63,10,70],[10,77,10,80],[10,81,10,133],[10,134,10,141],[11,2,11,5],[11,6,11,9],[11,10,11,38],[11,39,11,41],[11,42,11,70],[11,73,11,76],[11,77,11,80],[11,81,11,109],[11,110,11,112],[11,113,11,141],[16,2,16,4],[16,5,16,11],[16,12,16,42],[16,43,16,73],[16,74,16,78],[16,79,16,83],[12,2,12,141],[13,2,13,11],[13,12,13,42],[13,43,13,73],[13,74,13,83],[13,84,13,93],[13,94,13,103],[13,104,13,113],[13,114,13,123],[13,124,13,133],[13,134,13,141],[14,129,15,133],[14,134,15,137],[14,138,15,141],[15,2,15,11],[15,12,15,42],[15,43,15,73],[14,99,15,103],[14,104,15,108],[14,109,15,113],[14,114,15,118],[14,119,15,123],[14,124,15,128],[14,2,14,11],[14,12,14,42],[14,43,14,73],[14,74,15,78],[14,79,15,83],[14,84,15,88],[14,89,15,93],[14,94,15,98],[16,114,16,118],[16,119,16,123],[16,124,16,128],[16,129,16,133],[16,134,16,137],[16,138,16,141],[16,84,16,88],[16,89,16,93],[16,94,16,98],[16,99,16,103],[16,104,16,108],[16,109,16,113],[17,129,17,133],[17,134,17,137],[17,138,17,141],[17,84,17,88],[17,89,17,93],[17,94,17,98],[17,99,17,103],[17,104,17,108],[17,109,17,113],[18,2,18,4],[18,5,18,11],[18,12,18,42],[18,43,18,73],[18,74,18,78],[18,79,18,83],[17,114,17,118],[17,119,17,123],[17,124,17,128],[17,2,17,4],[17,5,17,11],[17,12,17,42],[17,43,17,73],[17,74,17,78],[17,79,17,83],[18,114,18,118],[18,119,18,123],[18,124,18,128],[18,129,18,133],[18,134,18,137],[18,138,18,141],[18,84,18,88],[18,89,18,93],[18,94,18,98],[18,99,18,103],[18,104,18,108],[18,109,18,113],[19,129,19,133],[19,134,19,137],[19,138,19,141],[19,84,19,88],[19,89,19,93],[19,94,19,98],[19,99,19,103],[19,104,19,108],[19,109,19,113],[20,2,20,4],[20,5,20,11],[20,12,20,42],[20,43,20,73],[20,74,20,78],[20,79,20,83],[19,114,19,118],[19,119,19,123],[19,124,19,128],[19,2,19,4],[19,5,19,11],[19,12,19,42],[19,43,19,73],[19,74,19,78],[19,79,19,83],[20,114,20,118],[20,119,20,123],[20,124,20,128],[20,129,20,133],[20,134,20,137],[20,138,20,141],[20,84,20,88],[20,89,20,93],[20,94,20,98],[20,99,20,103],[20,104,20,108],[20,109,20,113],[21,129,21,133],[21,134,21,137],[21,138,21,141],[21,84,21,88],[21,89,21,93],[21,94,21,98],[21,99,21,103],[21,104,21,108],[21,109,21,113],[22,2,22,4],[22,5,22,11],[22,12,22,42],[22,43,22,73],[22,74,22,78],[22,79,22,83],[21,114,21,118],[21,119,21,123],[21,124,21,128],[21,2,21,4],[21,5,21,11],[21,12,21,42],[21,43,21,73],[21,74,21,78],[21,79,21,83],[22,114,22,118],[22,119,22,123],[22,124,22,128],[22,129,22,133],[22,134,22,137],[22,138,22,141],[22,84,22,88],[22,89,22,93],[22,94,22,98],[22,99,22,103],[22,104,22,108],[22,109,22,113],[23,129,23,133],[23,134,23,137],[23,138,23,141],[23,84,23,88],[23,89,23,93],[23,94,23,98],[23,99,23,103],[23,104,23,108],[23,109,23,113],[24,2,24,4],[24,5,24,11],[24,12,24,42],[24,43,24,73],[24,74,24,78],[24,79,24,83],[23,114,23,118],[23,119,23,123],[23,124,23,128],[23,2,23,4],[23,5,23,11],[23,12,23,42],[23,43,23,73],[23,74,23,78],[23,79,23,83],[24,114,24,118],[24,119,24,123],[24,124,24,128],[24,129,24,133],[24,134,24,137],[24,138,24,141],[24,84,24,88],[24,89,24,93],[24,94,24,98],[24,99,24,103],[24,104,24,108],[24,109,24,113],[26,62,26,83],[26,84,26,89],[26,90,26,91],[26,92,26,97],[26,98,26,123],[27,2,27,141],[25,2,25,123],[25,124,26,128],[25,129,26,133],[25,134,26,137],[25,138,26,141],[26,2,26,15],[26,16,26,26],[26,27,26,36],[26,37,26,50],[26,51,26,61],[28,2,28,141],[29,2,29,12],[29,13,29,14],[29,15,29,51],[29,52,29,59],[29,60,29,63],[29,64,29,65],[29,66,29,69],[29,70,29,82],[29,83,29,89],[29,126,29,127],[29,128,29,133],[29,134,29,141],[30,2,30,141],[31,2,32,10],[31,11,32,12],[31,13,32,43],[31,44,38,48],[31,49,38,53],[31,54,31,78],[29,90,29,94],[29,95,29,96],[29,97,29,101],[29,102,29,112],[29,113,29,119],[29,120,29,125],[31,79,31,116],[31,117,31,141],[32,54,36,95],[32,96,37,99],[32,100,36,141],[33,2,33,10],[33,11,33,12],[33,13,33,43],[34,2,34,5],[34,6,35,43],[41,2,41,19],[41,20,41,21],[41,22,41,78],[41,79,41,99],[41,100,41,141],[42,0,43,141],[0,0,41,1],[0,2,0,141],[37,100,37,104],[37,105,37,141],[38,2,38,42],[38,54,38,141],[39,2,39,141],[40,2,40,19],[40,20,40,21],[40,22,40,78],[40,79,40,99],[40,100,40,141],[35,2,35,5],[36,2,36,5],[36,6,37,43],[37,2,37,5],[37,54,37,58],[37,59,37,95]]}
[null,null,"\"Braunschweiger System\"   -   3 gegen 3"]
[null,null,{"$f":"'4g4'!C2","v":"TT-Kreis Bayreuth"}]
[null,null,{"$f":"'4g4'!C3","v":"Herren"},null,null,null,null,null,null,null,null,null,null,null,null,null,null,"-",null,"Verbands",null,null,null,null,null,null,null,null,null,null,null,null,null,null,"-",null,"Mannschaftsspiel",null,null,null,null,null,null,null,null,null,null,null,null,null,null,null,null,null,null,null,null,null,null,null,null,null,null,"-",null,{"$f":"'4g4'!BN3","v":"4. Kreisliga Mitte"},null,null,null,null,null,null,null,null,null,null,null,null,null,null,null,null,null,null,null,null,null,null,null,null,null,null,null,null,null,null,null,null,null,null,null,null,{"$f":"'4g4'!CY3","v":"Vorrunde"},null,null,null,null,null,null,null,null,null,null,null,null,null,null,null,null,null,null,null,{"$f":"'4g4'!DS3","v":2016},null,null,null,null,null,null,null,null,"/",null,{"$f":"DS3+1","v":2017},null,null,null,null,null,null,null,null,{"$f":"IF(EE26=EI26,\"\",IF(EE26>EI26,C4,BQ4))","v":""}]
[null,null,{"$f":"'4g4'!C4","v":0},null,null,null,null,null,null,null,null,null,null,null,null,null,null,null,null,null,null,null,null,null,null,null,null,null,null,null,null,null,null,null,null,null,null,null,null,null,null,null,null,null,null,null,null,null,null,null,null,null,null,null,null,null,null,"gegen",null,null,null,null,null,null,null,null,null,null,null,null,null,null,null,null,null,null,null,null,null,null,null,null,null,null,null,null,null,null,null,null,null,null,null,null,null,null,null,null,null,null,null,null,null,null,null,null,null,null,null,null,null,null,null,null,null,null,null,null,null,null,null,null,null,null,null,null,null,null,{"$f":"EE26","v":""},null,null,null,null,null,":",null,{"$f":"EI26","v":""},null,null,null,null,null,{"$f":"IF(BI30=\"\",\"\",IF(EE26=EI26,EM11))","v":""}]
[null,null,"Heimmannschaft  ( A )",null,null,null,null,null,null,null,null,null,null,null,null,null,null,null,null,null,null,null,null,null,null,null,null,null,null,null,null,null,null,null,null,null,null,null,null,null,null,null,{"$f":"'4g4'!AQ5","v":508},null,null,null,null,null,null,null,{"$f":"'4g4'!AY5","v":0},null,null,null,null,null,null,null,null,null,null,null,null,null,null,null,null,null,{"$f":"AQ5","v":508},null,null,null,null,null,null,null,null,null,null,null,null,null,null,"Gastmannschaft  ( B )",null,null,null,null,null,null,null,null,null,null,null,null,null,null,null,null,null,null,null,null,null,null,null,null,null,null,null,null,null,null,null,null,null,null,null,null,null,null,null,null,null,null,null,null,"Endergebnis"]
[null,null,null,null,null,null,null,null,null,null,null,null,null,null,null,null,null,null,null,null,null,null,null,null,null,null,null,null,null,null,null,null,null,null,null,null,null,null,null,null,null,null,"Vereins-Nr.",null,null,null,null,null,null,null,null,null,null,null,null,null,null,null,null,null,null,null,null,null,null,null,null,null,"Vereins-Nr."]
[null,null,"Mannschaftsaufstellung"]
[null,null,"Rang",null,null,null,null,null,null,null,"Heimverein ( Mannschaft A )",null,null,null,null,null,null,null,null,null,null,null,null,null,null,null,null,null,null,null,null,null,null,null,null,null,null,null,null,null,null,null,null,null,null,null,null,null,null,null,null,null,null,null,null,null,null,null,null,null,null,null,null,"Pos.",null,null,null,null,null,null,null,null,null,"Rang",null,null,null,null,null,null,null,"Gastverein ( Mannschaft B )",null,null,null,null,null,null,null,null,null,null,null,null,null,null,null,null,null,null,null,null,null,null,null,null,null,null,null,null,null,null,null,null,null,null,null,null,null,null,null,null,null,null,null,null,null,null,null,null,null,null,null,null,"Pos."]
[null,null,"E I N Z E L",null,null,null,"A1",null,null,null,null,null,null,null,null,null,null,null,null,null,null,null,null,null,null,null,null,null,null,null,null,null,null,null,null,null,null,null,null,null,null,null,null,null,null,null,null,null,null,null,null,null,null,null,null,null,null,null,null,null,null,null,null,null,null,null,null,null,null,null,null,null,null,"E I N Z E L",null,null,null,"B1",null,null,null,null,null,null,null,null,null,null,null,null,null,null,null,null,null,null,null,null,null,null,null,null,null,null,null,null,null,null,null,null,null,null,null,null,null,null,null,null,null,null,null,null,null,null,null,null,null,null,null,null,null,null,null,null,null,null,null,null,null,null,null,null,{"$f":"IF(EE26<>EI26,EM3,EM4)","v":""}]
[null,null,null,null,null,null,"A2",null,null,null,null,null,null,null,null,null,null,null,null,null,null,null,null,null,null,null,null,null,null,null,null,null,null,null,null,null,null,null,null,null,null,null,null,null,null,null,null,null,null,null,null,null,null,null,null,null,null,null,null,null,null,null,null,null,null,null,null,null,null,null,null,null,null,null,null,null,null,"B2",null,null,null,null,null,null,null,null,null,null,null,null,null,null,null,null,null,null,null,null,null,null,null,null,null,null,null,null,null,null,null,null,null,null,null,null,null,null,null,null,null,null,null,null,null,null,null,null,null,null,null,null,null,null,null,null,null,null,null,null,null,null,null,null,"Sieger"]
[null,null,null,null,null,null,"A3",null,null,null,null,null,null,null,null,null,null,null,null,null,null,null,null,null,null,null,null,null,null,null,null,null,null,null,null,null,null,null,null,null,null,null,null,null,null,null,null,null,null,null,null,null,null,null,null,null,null,null,null,null,null,null,null,null,null,null,null,null,null,null,null,null,null,null,null,null,null,"B3",null,null,null,null,null,null,null,null,null,null,null,null,null,null,null,null,null,null,null,null,null,null,null,null,null,null,null,null,null,null,null,null,null,null,null,null,null,null,null,null,null,null,null,null,null,null,null,null,null,null,null,null,null,null,null,null,null,null,null,null,null,null,null,null,"Unentschieden"]
[null,null,"D",null,null,null,"A1",null,null,null,null,null,null,null,null,null,null,null,null,null,null,null,null,null,null,null,null,null,null,null,null,null,null,null,null,null,null,null,null,"/",null,null,null,null,null,null,null,null,null,null,null,null,null,null,null,null,null,null,null,null,null,null,null,null,null,null,null,null,null,null,null,null,null,"D",null,null,null,"B1",null,null,null,null,null,null,null,null,null,null,null,null,null,null,null,null,null,null,null,null,null,null,null,null,null,null,null,null,null,null,null,null,"/"]
[null,null,{"$f":"'4g4'!C15","v":"created by Gerhard Nidetzky"}]
[null,null,"Spielfolge",null,null,null,null,null,null,null,null,null,"Heimverein ( Mannschaft A )",null,null,null,null,null,null,null,null,null,null,null,null,null,null,null,null,null,null,null,null,null,null,null,null,null,null,null,null,null,null,"Gastverein ( Mannschaft B )",null,null,null,null,null,null,null,null,null,null,null,null,null,null,null,null,null,null,null,null,null,null,null,null,null,null,null,null,null,null,"1. Satz",null,null,null,null,null,null,null,null,null,"2. Satz",null,null,null,null,null,null,null,null,null,"3. Satz",null,null,null,null,null,null,null,null,null,"4. Satz",null,null,null,null,null,null,null,null,null,"5. Satz",null,null,null,null,null,null,null,null,null,"Sätze",null,null,null,null,null,null,null,null,null,"Spiele"]
[null,null,"Doppel",null,null,null,null,null,null,null,null,null,{"$f":"K12","v":0},null,null,null,null,null,null,null,null,null,null,null,null,null,null,null,null,null,null,null,null,null,null,null,null,null,null,null,null,null,null,{"$f":"CD12","v":0},null,null,null,null,null,null,null,null,null,null,null,null,null,null,null,null,null,null,null,null,null,null,null,null,null,null,null,null,null,null,null,null,null,null,null,null,null,null,null,null,null,null,null,null,null,null,null,null,null,null,null,null,null,null,null,null,null,null,null,null,null,null,null,null,null,null,null,null,null,null,null,null,null,null,null,null,null,null,null,null,{"$f":"IF(BW15=\"\",\"\",IF(BW15>CB15,1,0)+IF(CG15>CL15,1,0)+IF(CQ15>CV15,1,0)+IF(DA15>DF15,1,0)+IF(DK15>DP15,1,0))","v":""},null,null,null,null,{"$f":"IF(BW15=\"\",\"\",IF(BW15<CB15,1,0)+IF(CG15<CL15,1,0)+IF(CQ15<CV15,1,0)+IF(DA15<DF15,1,0)+IF(DK15<DP15,1,0))","v":""},null,null,null,null,{"$f":"IF(DU15=\"\",\"\",IF(DU15>DZ15,1,0))","v":""},null,null,null,{"$f":"IF(DU15=\"\",\"\",IF(DU15<DZ15,1,0))","v":""},null,null,null,{"$f":"M14","v":"Heimverein ( Mannschaft A )"}]
[null,null,"A1 - B1",null,null,null,null,null,null,null,null,null,{"$f":"AQ12","v":0},null,null,null,null,null,null,null,null,null,null,null,null,null,null,null,null,null,null,null,null,null,null,null,null,null,null,null,null,null,null,{"$f":"DJ12","v":0},null,null,null,null,null,null,null,null,null,null,null,null,null,null,null,null,null,null,null,null,null,null,null,null,null,null,null,null,null,null,null,null,null,null,null,null,null,null,null,null,null,null,null,null,null,null,null,null,null,null,null,null,null,null,null,null,null,null,null,null,null,null,null,null,null,null,null,null,null,null,null,null,null,null,null,null,null,null,null,null,null,null,null,null,null,null,null,null,null,null,null,null,null,null,null,null,null,null,{"$f":"SUM(BW15:CA25)","v":0}]
[null,null,"E",null,null,"A1-B2",null,null,null,null,null,null,{"$f":"K9","v":0},null,null,null,null,null,null,null,null,null,null,null,null,null,null,null,null,null,null,null,null,null,null,null,null,null,null,null,null,null,null,{"$f":"CD10","v":0},null,null,null,null,null,null,null,null,null,null,null,null,null,null,null,null,null,null,null,null,null,null,null,null,null,null,null,null,null,null,null,null,null,null,null,null,null,null,null,null,null,null,null,null,null,null,null,null,null,null,null,null,null,null,null,null,null,null,null,null,null,null,null,null,null,null,null,null,null,null,null,null,null,null,null,null,null,null,null,null,{"$f":"IF(BW17=\"\",\"\",IF(BW17>CB17,1,0)+IF(CG17>CL17,1,0)+IF(CQ17>CV17,1,0)+IF(DA17>DF17,1,0)+IF(DK17>DP17,1,0))","v":""},null,null,null,null,{"$f":"IF(BW17=\"\",\"\",IF(BW17<CB17,1,0)+IF(CG17<CL17,1,0)+IF(CQ17<CV17,1,0)+IF(DA17<DF17,1,0)+IF(DK17<DP17,1,0))","v":""},null,null,null,null,{"$f":"IF(DU17=\"\",\"\",IF(DU17>DZ17,1,0))","v":""},null,null,null,{"$f":"IF(DU17=\"\",\"\",IF(DU17<DZ17,1,0))","v":""},null,null,null,{"$f":"SUM(CG15:CK25)","v":0}]
[null,null,"E",null,null,"A2-B1",null,null,null,null,null,null,{"$f":"K10","v":0},null,null,null,null,null,null,null,null,null,null,null,null,null,null,null,null,null,null,null,null,null,null,null,null,null,null,null,null,null,null,{"$f":"CD9","v":0},null,null,null,null,null,null,null,null,null,null,null,null,null,null,null,null,null,null,null,null,null,null,null,null,null,null,null,null,null,null,null,null,null,null,null,null,null,null,null,null,null,null,null,null,null,null,null,null,null,null,null,null,null,null,null,null,null,null,null,null,null,null,null,null,null,null,null,null,null,null,null,null,null,null,null,null,null,null,null,null,"",null,null,null,null,"",null,null,null,null,"",null,null,null,"",null,null,null,{"$f":"SUM(CQ15:CU25)","v":0}]
[null,null,"E",null,null,"A3-B2",null,null,null,null,null,null,{"$f":"K11","v":0},null,null,null,null,null,null,null,null,null,null,null,null,null,null,null,null,null,null,null,null,null,null,null,null,null,null,null,null,null,null,{"$f":"CD10","v":0},null,null,null,null,null,null,null,null,null,null,null,null,null,null,null,null,null,null,null,null,null,null,null,null,null,null,null,null,null,null,null,null,null,null,null,null,null,null,null,null,null,null,null,null,null,null,null,null,null,null,null,null,null,null,null,null,null,null,null,null,null,null,null,null,null,null,null,null,null,null,null,null,null,null,null,null,null,null,null,null,"",null,null,null,null,"",null,null,null,null,"",null,null,null,"",null,null,null,{"$f":"SUM(DA15:DE25)","v":0}]
[null,null,"E",null,null,"A2-B3",null,null,null,null,null,null,{"$f":"K10","v":0},null,null,null,null,null,null,null,null,null,null,null,null,null,null,null,null,null,null,null,null,null,null,null,null,null,null,null,null,null,null,{"$f":"CD11","v":0},null,null,null,null,null,null,null,null,null,null,null,null,null,null,null,null,null,null,null,null,null,null,null,null,null,null,null,null,null,null,null,null,null,null,null,null,null,null,null,null,null,null,null,null,null,null,null,null,null,null,null,null,null,null,null,null,null,null,null,null,null,null,null,null,null,null,null,null,null,null,null,null,null,null,null,null,null,null,null,null,"",null,null,null,null,"",null,null,null,null,"",null,null,null,"",null,null,null,{"$f":"SUM(DK15:DO25)","v":0}]
[null,null,"E",null,null,"A1-B1",null,null,null,null,null,null,{"$f":"K9","v":0},null,null,null,null,null,null,null,null,null,null,null,null,null,null,null,null,null,null,null,null,null,null,null,null,null,null,null,null,null,null,{"$f":"CD9","v":0},null,null,null,null,null,null,null,null,null,null,null,null,null,null,null,null,null,null,null,null,null,null,null,null,null,null,null,null,null,null,null,null,null,null,null,null,null,null,null,null,null,null,null,null,null,null,null,null,null,null,null,null,null,null,null,null,null,null,null,null,null,null,null,null,null,null,null,null,null,null,null,null,null,null,null,null,null,null,null,null,"",null,null,null,null,"",null,null,null,null,"",null,null,null,"",null,null,null,{"$f":"SUM(EM16:EM20)","v":0}]
[null,null,"E",null,null,"A3-B3",null,null,null,null,null,null,{"$f":"K11","v":0},null,null,null,null,null,null,null,null,null,null,null,null,null,null,null,null,null,null,null,null,null,null,null,null,null,null,null,null,null,null,{"$f":"CD11","v":0},null,null,null,null,null,null,null,null,null,null,null,null,null,null,null,null,null,null,null,null,null,null,null,null,null,null,null,null,null,null,null,null,null,null,null,null,null,null,null,null,null,null,null,null,null,null,null,null,null,null,null,null,null,null,null,null,null,null,null,null,null,null,null,null,null,null,null,null,null,null,null,null,null,null,null,null,null,null,null,null,"",null,null,null,null,"",null,null,null,null,"",null,null,null,"",null,null,null,{"$f":"AR14","v":"Gastverein ( Mannschaft B )"}]
[null,null,"E",null,null,"A2-B2",null,null,null,null,null,null,{"$f":"K10","v":0},null,null,null,null,null,null,null,null,null,null,null,null,null,null,null,null,null,null,null,null,null,null,null,null,null,null,null,null,null,null,{"$f":"CD10","v":0},null,null,null,null,null,null,null,null,null,null,null,null,null,null,null,null,null,null,null,null,null,null,null,null,null,null,null,null,null,null,null,null,null,null,null,null,null,null,null,null,null,null,null,null,null,null,null,null,null,null,null,null,null,null,null,null,null,null,null,null,null,null,null,null,null,null,null,null,null,null,null,null,null,null,null,null,null,null,null,null,"",null,null,null,null,"",null,null,null,null,"",null,null,null,"",null,null,null,{"$f":"SUM(CB15:CF25)","v":0}]
[null,null,"E",null,null,"A3-B1",null,null,null,null,null,null,{"$f":"K11","v":0},null,null,null,null,null,null,null,null,null,null,null,null,null,null,null,null,null,null,null,null,null,null,null,null,null,null,null,null,null,null,{"$f":"CD9","v":0},null,null,null,null,null,null,null,null,null,null,null,null,null,null,null,null,null,null,null,null,null,null,null,null,null,null,null,null,null,null,null,null,null,null,null,null,null,null,null,null,null,null,null,null,null,null,null,null,null,null,null,null,null,null,null,null,null,null,null,null,null,null,null,null,null,null,null,null,null,null,null,null,null,null,null,null,null,null,null,null,"",null,null,null,null,"",null,null,null,null,"",null,null,null,"",null,null,null,{"$f":"SUM(CL15:CP25)","v":0}]
[null,null,"E",null,null,"A1-B3",null,null,null,null,null,null,{"$f":"K9","v":0},null,null,null,null,null,null,null,null,null,null,null,null,null,null,null,null,null,null,null,null,null,null,null,null,null,null,null,null,null,null,{"$f":"CD11","v":0},null,null,null,null,null,null,null,null,null,null,null,null,null,null,null,null,null,null,null,null,null,null,null,null,null,null,null,null,null,null,null,null,null,null,null,null,null,null,null,null,null,null,null,null,null,null,null,null,null,null,null,null,null,null,null,null,null,null,null,null,null,null,null,null,null,null,null,null,null,null,null,null,null,null,null,null,null,null,null,null,"",null,null,null,null,"",null,null,null,null,"",null,null,null,"",null,null,null,{"$f":"SUM(CV15:CZ25)","v":0}]
[null,null,null,null,null,null,null,null,null,null,null,null,null,null,null,null,null,null,null,null,null,null,null,null,null,null,null,null,null,null,null,null,null,null,null,null,null,null,null,null,null,null,null,null,null,null,null,null,null,null,null,null,null,null,null,null,null,null,null,null,null,null,null,null,null,null,null,null,null,null,null,null,null,null,null,null,null,null,null,null,null,null,null,null,null,null,null,null,null,null,null,null,null,null,null,null,null,null,null,null,null,null,null,null,null,null,null,null,null,null,null,null,null,null,null,null,null,null,null,null,null,null,null,null,{"$f":"IF(DU15=\"\",\"\",SUM(DU15:DY25))","v":""},null,null,null,null,{"$f":"IF(DZ15=\"\",\"\",SUM(DZ15:ED25))","v":""},null,null,null,null,{"$f":"IF(EE15=\"\",\"\",SUM(EE15:EH25))","v":""},null,null,null,{"$f":"IF(EI15=\"\",\"\",SUM(EI15:EL25))","v":""},null,null,null,{"$f":"SUM(DF15:DJ25)","v":0}]
[null,null,"Spielbeginn :",null,null,null,null,null,null,null,null,null,null,null,null,null,{"$f":"'4g4'!Q30","v":"00:00:00"},null,null,null,null,null,null,null,null,null,null,"Uhr",null,null,null,null,null,null,null,null,null,"Spielende :",null,null,null,null,null,null,null,null,null,null,null,null,null,null,null,null,null,null,null,null,null,null,null,null,"Uhr",null,null,null,null,null,null,null,null,null,null,null,null,null,null,null,null,null,null,null,null,null,{"$f":"EM21","v":0},null,null,null,null,null,":",null,{"$f":"EM30","v":0},null,null,null,null,null," Bälle",null,null,null,null,null,null,null,null,null,null,null,null,null,null,null,null,null,null,null,null,null,null,null,null,null,null,null,null,null,null,null,null,null,null,null,null,null,null,null,null,null,null,null,{"$f":"SUM(DP15:DT25)","v":0}]
[]
[]
[null,null,{"$f":"IF(BI30=BO30,\"\",IF(BI30>BO30,EM10,EM12))","v":""},null,null,null,null,null,null,null,null,null,null,":",null,{"$f":"EM9","v":""},null,null,null,null,null,null,null,null,null,null,null,null,null,null,null,null,null,null,null,null,null,null,null,null,null,null,null,null,null,null,null,null,null,null,null,null,"mit :",null,null,null,null,null,null,null,{"$f":"IF(EE26>EI26,EE26,EI26)","v":""},null,null,null,":",null,{"$f":"IF(EE26<EI26,EE26,EI26)","v":""},null,null,null,"Spielen",null,null,null,null,null,null,null,null,null,null,null,null,"und",null,null,null,null,null,null,{"$f":"IF(EE26>=EI26,DU26,DZ26)","v":""},null,null,null,null,":",null,{"$f":"IF(EE26<EI26,DU26,DZ26)","v":""},null,null,null,null,"Sätzen",null,null,null,null,null,null,null,null,null,null,"und",null,null,null,null,null,null,{"$f":"IF(EE26>=EI26,EM21,EM30)","v":0},null,null,null,null,null,":",null,{"$f":"IF(EE26<EI26,EM21,EM30)","v":0},null,null,null,null,null," Bälle",null,null,null,null,null,null,null,{"$f":"SUM(EM23:EM27)","v":0}]
[]
[null,null,"Spielort ",null,null,null,null,null,null,null,null,":",null,{"$f":"'4g4'!N35","v":0},null,null,null,null,null,null,null,null,null,null,null,null,null,null,null,null,null,null,null,null,null,null,null,null,null,null,null,null,null,null,null,null,null,null,null,null,null,null,null,null,{"$f":"C4","v":0},null,null,null,null,null,null,null,null,null,null,null,null,null,null,null,null,null,null,null,null,null,null,null,null,"Unterschriften Mannschaftsführer",null,null,null,null,null,null,null,null,null,null,null,null,null,null,null,null,null,null,null,null,null,null,null,null,null,null,null,null,null,null,null,null,null,null,null,null,null,{"$f":"BQ4","v":0}]
[]
[null,null,"Datum",null,null,null,null,null,null,null,null,":",null,{"$f":"TODAY()","v":"2016-06-08"}]
[null,null,null,null,null,null," kein Protest"]
[null,null,"X"]
[null,null,null,null,null,null,"Protest - siehe Anlage"]
[null,null,null,null,null,null,null,null,null,null,null,null,null,null,null,null,null,null,null,null,null,null,null,null,null,null,null,null,null,null,null,null,null,null,null,null,null,null,null,null,null,null,null,null,null,null,null,null,null,null,null,null,null,null,"Mf :",null,null,null,null,{"$f":"'4g4'!BH41","v":0},null,null,null,null,null,null,null,null,null,null,null,null,null,null,null,null,null,null,null,null,null,null,null,null,null,null,null,null,null,null,null,null,null,null,null,null,null,null,null,null,"Mf :"]
[]
[]
[null,null,"Spielleiter 4. KL. Mi.",null,null,null,null,null,null,null,null,null,null,null,null,null,null,null,null,null,":",null,"Matthias Höger - Erlenweg 8, 86697 Unterhausen",null,null,null,null,null,null,null,null,null,null,null,null,null,null,null,null,null,null,null,null,null,null,null,null,null,null,null,null,null,null,null,null,null,null,null,null,null,null,null,null,null,null,null,null,null,null,null,null,null,null,null,null,null,null,null,null,"0176 - 465 777 99",null,null,null,null,null,null,null,null,null,null,null,null,null,null,null,null,null,null,null,null,"matthias.hoeger@ttkreis-bayreuth.de"]
[null,null," Mannschaftsführer",null,null,null,null,null,null,null,null,null,null,null,null,null,null,null,null,null,":",null,{"$f":"'4g4'!W45","v":0},null,null,null,null,null,null,null,null,null,null,null,null,null,null,null,null,null,null,null,null,null,null,null,null,null,null,null,null,null,null,null,null,null,null,null,null,null,null,null,null,null,null,null,null,null,null,null,null,null,null,null,null,null,null,null,null,{"$f":"'4g4'!CB45","v":0},null,null,null,null,null,null,null,null,null,null,null,null,null,null,null,null,null,null,null,null,{"$f":"'4g4'!CW45","v":0}]

{"sheet":"Vereins-Nr.","index":5,"n_rows":32,"n_cols":3,"rows_kept":32,"cut":false,"hidden":false,"merged":[]}
[]
[null,"Verein","Ver.-Nr."]
[null," SC  Altenplos",508001]
[null," 1. FC  Bayreuth",508007]
[null," SC  Raiffeisen  Bayreuth",508008]
[null," TSV  Bindlach",508009]
[null," TSV  Bischofsgrün",508038]
[null," TTC  Creußen",508010]
[null," TSV  Donndorf  Eckersdorf",508028]
[null," SV  1921  Heinersreuth",508036]
[null," ASV  Hollfeld",508011]
[null," TSV  Kirchenlaibach",508012]
[null," ATS  Kulmbach",508013]
[null," Post  SV  Kulmbach",508014]
[null," SSV  Kirchenpingarten",508045]
[null," SV  Lanzendorf",508029]
[null," TTC  Mainleus",508015]
[null," TV  Marktleugast",508016]
[null," TSV  Mistelbach",508034]
[null," SV  Mistelgau",508017]
[null," ASV  Nemmersdorf",508032]
[null," SV  Neunkirchen  a. Main",508033]
[null," TSV  Obernsees",508018]
[null," SV  Glückauf  Pegnitz",508019]
[null," TSC  Pottenstein",508021]
[null," TTC  Rugendorf",508022]
[null," TSV  Stadtsteinach",508023]
[null," TSV  Thurnau",508024]
[null," TTC  Trebgast / Neuenmarkt",508042]
[null," SV  Weidenberg",508025]
[null," TTC  Willmersreuth",508026]
[null," SpVgg  Wonsees",508044]